Workbook

Sheet 1. Info
AA1: Revenue Requirement Workform (RRWF) for 2026 Filers | AC1: =IF('3. Data_Input_Sheet'!M12=0, "", '3. Data_Input_Sheet'!M12) -> Interrogatory Responses
AA2: 1.1 | AC2: =IF('3. Data_Input_Sheet'!U12=0, "", '3. Data_Input_Sheet'!U12) -> Settlement Agreement
P11: Version | Q11: =$AA$2 -> 1.1
F16: Utility Name | G16: Five Nations Energy Inc.
F18: Service Territory
F20: Assigned EB Number | G20: EB-2025-0129 | AA20: Company Name
Z21: 1 | AA21: Alectra Utilities Corporation-Brampton Rate Zone
F22: Name and Title | G22: Dorothy Kioke, CFO | Z22: 2 | AA22: Alectra Utilities Corporation-Enersource Rate Zone
Z23: 3 | AA23: Alectra Utilities Corporation-Horizon Utilities Rate Zone
F24: Phone Number | G24: 705-268-0056 | Z24: 4 | AA24: Alectra Utilities Corporation-PowerStream Rate Zone
Z25: 5 | AA25: Alectra Utilities Corporation-Guelph Rate Zone
F26: Email Address | G26: dorothykioke@fivenations.ca | Z26: 6 | AA26: Algoma Power Inc.
Z27: 7 | AA27: Atikokan Hydro Inc.
E28: Test Year | G28: 2026 | Z28: 8 | AA28: Bluewater Power Distribution Corporation
Z29: 9 | AA29: Burlington Hydro Inc.
E30: Bridge Year | G30: 2025 | Z30: 10 | AA30: Canadian Niagara Power Inc.
Z31: 11 | AA31: Centre Wellington Hydro Ltd.
E32: Last Rebasing Year | G32: 2018 | Z32: 12 | AA32: Chapleau Public Utilities Corporation
Z33: 13 | AA33: Cooperative Hydro Embrun Inc.
Z34: 14 | AA34: E.L.K. Energy Inc.
Z35: 15 | AA35: Elexicon Energy Inc.-Whitby Rate Zone
Z36: 16 | AA36: Elexicon Energy Inc.-Veridian Rate Zone
A37: The RRWF has been enhanced commencing with 2017 rate applications to provide estimated base distribution rates. The enhanced RRWF is not intended to replace a utility’s formal rate generator model which should continue to be the source of the proposed rates as well as the final ones at the conclusion of the proceeding. The load forecasting addition made to this model is intended to be demonstrative only and does not replace the information filed in the utility’s application. In an effort to minimize the incremental work required from utilities, the cost allocation and rate design additions to this model do in fact replace former appendices that were required to be filed as part of the cost of service (Chapter 2) filing requirements. | Z37: 17 | AA37: Enova Power Corp.-Kitchener-Wilmot Hydro Rate Zone
AA38: Enova Power Corp.-Waterloo North Rate Zone
A39: Commencing with 2023 rate applications, the RRWF has been enhanced with an additional column, so that two stages of processing of an application (e.g. interrogatory responses and settlement agreement) between the initial application filing and the OEB decision and draft rate order ("Per Board Decision") can be used. Functionality of the RRWF is the same as in previous versions of the RRWF. (May 2022) | Z39: 18 | AA39: Entegrus Powerlines Inc.-For Entegrus-Main Rate Zone
Z40: 19 | AA40: Entegrus Powerlines Inc.-For Former St. Thomas Energy Rate Zone
Z41: 20 | AA41: ENWIN Utilities Ltd.
Z42: 21 | AA42: EPCOR Electricity Distribution Ontario Inc.
Z43: 22 | AA43: ERTH Power Corporation - ERTH Power Main Rate Zone
Z44: 23 | AA44: ERTH POWER CORPORATION – GODERICH RATE ZONE
Z45: 24 | AA45: Espanola Regional Hydro Distribution Corporation
Z46: 25 | AA46: Essex Powerlines Corporation
Z47: 26 | AA47: Festival Hydro Inc.
Z48: 27 | AA48: Fort Frances Power Corporation
Z49: 28 | AA49: GrandBridge Energy Inc.-Brantford Power Rate Zone
Z50: 29 | AA50: GrandBridge Energy Inc.-Energy+ Rate Zone
Z51: 30 | AA51: Greater Sudbury Hydro Inc.
Z52: 31 | AA52: Grimsby Power Incorporated
Z53: 32 | AA53: Halton Hills Hydro Inc.
Z54: 33 | AA54: Hearst Power Distribution Co. Ltd.
Z55: 34 | AA55: Hydro 2000 Inc.
Z56: 35 | AA56: Hydro Hawkesbury Inc.
Z57: 36 | AA57: Hydro One Networks Inc.
Z58: 37 | AA58: Hydro One Networks Inc.-Former Orillia Power Distribution Corporation Service Area
Z59: 38 | AA59: Hydro One Networks Inc.-Former Peterborough Distribution Inc. Service Area
Z60: 39 | AA60: Hydro One Networks Inc.-Former Haldimand County Hydro Inc. Service Area
Z61: 40 | AA61: Hydro One Networks Inc.-Former Norfolk Power Distribution Inc. Service Area
Z62: 41 | AA62: Hydro One Networks Inc.-Former Woodstock Hydro Services Inc. Service Area
Z63: 42 | AA63: Hydro One Remote Communites Inc.
Z64: 43 | AA64: Hydro Ottawa Limited
Z65: 44 | AA65: InnPower Corporation
Z66: 45 | AA66: Kingston Hydro Corporation
Z67: 46 | AA67: Lakefront Utilities Inc.
Z68: 47 | AA68: Lakeland Power Distribution Ltd.
Z69: 48 | AA69: London Hydro Inc.
Z70: 49 | AA70: Milton Hydro Distribution Inc.
Z71: 50 | AA71: Newmarket-Tay Power Distribution Ltd.-For Former Midland Power Utility Rate Zone
Z72: 51 | AA72: Newmarket-Tay Power Distribution Ltd.-For Newmarket-Tay Power Main Rate Zone
Z73: 52 | AA73: Niagara Peninsula Energy Inc.
Z74: 53 | AA74: Niagara-on-the-Lake Hydro Inc.
Z75: 54 | AA75: North Bay Hydro Distribution Limited
Z76: 55 | AA76: Northern Ontario Wires Inc.
Z77: 56 | AA77: Oakville Hydro Electricity Distribution Inc.
Z78: 57 | AA78: Orangeville Hydro Limited
Z79: 58 | AA79: Oshawa PUC Networks Inc.
Z80: 59 | AA80: Ottawa River Power Corporation
Z81: 60 | AA81: PUC Distribution Inc.
Z82: 61 | AA82: Renfrew Hydro Inc.
Z83: 62 | AA83: Rideau St. Lawrence Distribution Inc.
Z84: 63 | AA84: Sioux Lookout Hydro Inc.
Z85: 64 | AA85: Synergy North Corporation-Kenora Rate Zone
Z86: 65 | AA86: Synergy North Corporation-Thunder Bay Rate Zone
Z87: 66 | AA87: Tillsonburg Hydro Inc.
Z88: 67 | AA88: Toronto Hydro-Electric System Limited
Z89: 68 | AA89: Wasaga Distribution Inc.
Z90: 69 | AA90: Welland Hydro-Electric System Corp.
Z91: 70 | AA91: Wellington North Power Inc.
Z92: 71 | AA92: Westario Power Inc.
Z93: 72 | AA93: Five Nations Energy Inc.

Sheet 2. Table of Contents (hidden)
A10: Table of Contents
D12: 1. Info | I12: 8. Rev_Def_Suff
D14: 2. Table of Contents | I14: 9. Rev_Reqt
D16: 3. Data_Input_Sheet | I16: 10. Load Forecast
D18: 4. Rate_Base | I18: 11. Cost Allocation
D20: 5. Utility Income | I20: 12. Residential Rate Design - hidden. Contact OEB staff if needed.
D22: 6. Taxes_PILs | I22: 13. Rate Design and Revenue Reconciliation
D24: 7. Cost_of_Capital | I24: 14. Tracking Sheet
A26: Notes:
A27: (1) | B27: Pale green cells represent inputs
A28: (2) | B28: Pale green boxes at the bottom of each page are for additional notes
A29: (3) | B29: Pale blue cells represent drop-down lists
A30: (4) | B30: Please note that this model uses MACROS. Before starting, please ensure that macros have been enabled.
A31: (5) | B31: Completed versions of the Revenue Requirement Work Form are required to be filed in working Microsoft Excel format.

Sheet 3. Data_Input_Sheet
U1: =CONCATENATE('2. Table of Contents'!$F$6," ",'2. Table of Contents'!$G$6) -> 
B9: Data Input Sheet
E12: Initial Application | G12: (1) | I12: =IF(ISBLANK(M12),"","Adjustments") -> Adjustments | M12: Interrogatory Responses | O12: (5) | Q12: =IF(ISBLANK(M12),"","Adjustments") -> Adjustments | U12: Settlement Agreement | W12: (5) | Y12: =IF(ISBLANK(U12),"","Adjustments") -> Adjustments | AC12: Per Board Decision
B15: 1 | C15: Rate Base
C16: Gross Fixed Assets (average) | E16: 98357924.89 | I16: =IF(ISBLANK(M16),"",IF(ISBLANK(E16),"",M16-E16)) ->  | Q16: =IF(ISBLANK(U16),"",IF(ISBLANK(M16),"",U16-M16)) ->  | Y16: =IF(ISBLANK(AC16),"",IF(ISBLANK(U16),"",AC16-U16)) -> 
C17: Accumulated Depreciation (average) | E17: -62043911.98 | G17: (4) | I17: =IF(ISBLANK(M17),"",IF(ISBLANK(E17),"",M17-E17)) ->  | Q17: =IF(ISBLANK(U17),"",IF(ISBLANK(M17),"",U17-M17)) ->  | Y17: =IF(ISBLANK(AC17),"",IF(ISBLANK(U17),"",AC17-U17)) -> 
C18: Allowance for Working Capital:
C19: Controllable Expenses | E19: 6201581.84 | I19: =IF(ISBLANK(M19),"",IF(ISBLANK(E19),"",M19-E19)) ->  | Q19: =IF(ISBLANK(U19),"",IF(ISBLANK(M19),"",U19-M19)) ->  | Y19: =IF(ISBLANK(AC19),"",IF(ISBLANK(U19),"",AC19-U19)) -> 
C20: Cost of Power | E20: 0 | I20: =IF(ISBLANK(M20),"",IF(ISBLANK(E20),"",M20-E20)) ->  | Q20: =IF(ISBLANK(U20),"",IF(ISBLANK(M20),"",U20-M20)) ->  | Y20: =IF(ISBLANK(AC20),"",IF(ISBLANK(U20),"",AC20-U20)) -> 
C21: Working Capital Rate (%) | E21: 0.0355 | G21: (8) | I21: =IF(ISBLANK(M21),"",IF(ISBLANK(E21),"",M21-E21)) ->  | O21: (8) | Q21: =IF(ISBLANK(U21),"",IF(ISBLANK(M21),"",U21-M21)) ->  | W21: (8) | Y21: =IF(ISBLANK(AC21),"",IF(ISBLANK(U21),"",AC21-U21)) ->  | AE21: (8)
B23: 2 | C23: Utility Income
C24: Operating Revenues:
C25: Transmission Revenue at Current Rates | E25: 7988092 | I25: =IF(ISBLANK(M25),"",IF(ISBLANK(E25),"",M25-E25)) ->  | Q25: =IF(ISBLANK(U25),"",IF(ISBLANK(M25),"",U25-M25)) ->  | Y25: =IF(ISBLANK(AC25),"",IF(ISBLANK(U25),"",AC25-U25)) -> 
C26: Transmission Revenue at Proposed Rates | E26: 10437495.35 | I26: =IF(ISBLANK(M26),"",IF(ISBLANK(E26),"",M26-E26)) ->  | Q26: =IF(ISBLANK(U26),"",IF(ISBLANK(M26),"",U26-M26)) ->  | Y26: =IF(ISBLANK(AC26),"",IF(ISBLANK(U26),"",AC26-U26)) -> 
C27: Other Revenue:
C28: Miscellaneous Service Revenues | I28: =IF(ISBLANK(M28),"",IF(ISBLANK(E28),"",M28-E28)) ->  | Q28: =IF(ISBLANK(U28),"",IF(ISBLANK(M28),"",U28-M28)) ->  | Y28: =IF(ISBLANK(AC28),"",IF(ISBLANK(U28),"",AC28-U28)) -> 
C29: Late Payment Charges | I29: =IF(ISBLANK(M29),"",IF(ISBLANK(E29),"",M29-E29)) ->  | Q29: =IF(ISBLANK(U29),"",IF(ISBLANK(M29),"",U29-M29)) ->  | Y29: =IF(ISBLANK(AC29),"",IF(ISBLANK(U29),"",AC29-U29)) -> 
C30: Other Operating Revenues | I30: =IF(ISBLANK(M30),"",IF(ISBLANK(E30),"",M30-E30)) ->  | Q30: =IF(ISBLANK(U30),"",IF(ISBLANK(M30),"",U30-M30)) ->  | Y30: =IF(ISBLANK(AC30),"",IF(ISBLANK(U30),"",AC30-U30)) -> 
C31: Other Income and Deductions | E31: 80000 | I31: =IF(ISBLANK(M31),"",IF(ISBLANK(E31),"",M31-E31)) ->  | Q31: =IF(ISBLANK(U31),"",IF(ISBLANK(M31),"",U31-M31)) ->  | Y31: =IF(ISBLANK(AC31),"",IF(ISBLANK(U31),"",AC31-U31)) -> 
D33: Total Revenue Offsets | E33: =E31 -> 80000 | G33: (6) | I33: =IF(ISBLANK(M33),"",IF(ISBLANK(E33),"",M33-E33)) ->  | Q33: =IF(ISBLANK(U33),"",IF(ISBLANK(M33),"",U33-M33)) ->  | Y33: =IF(ISBLANK(AC33),"",IF(ISBLANK(U33),"",AC33-U33)) -> 
C35: Operating Expenses:
C36: OM+A Expenses | E36: 6201581.84 | I36: =IF(ISBLANK(M36),"",IF(ISBLANK(E36),"",M36-E36)) ->  | Q36: =IF(ISBLANK(U36),"",IF(ISBLANK(M36),"",U36-M36)) ->  | Y36: =IF(ISBLANK(AC36),"",IF(ISBLANK(U36),"",AC36-U36)) -> 
C37: Depreciation/Amortization | E37: 2013957.15 | I37: =IF(ISBLANK(M37),"",IF(ISBLANK(E37),"",M37-E37)) -> 
C38: Property taxes | E38: 0 | I38: =IF(ISBLANK(M38),"",IF(ISBLANK(E38),"",M38-E38)) -> 
C39: Capital taxes
C40: Other expenses | I40: =IF(ISBLANK(M40),"",IF(ISBLANK(E40),"",M40-E40)) -> 
B42: 3 | C42: Taxes/PILs
C43: Taxable Income:
D44: Adjustments required to arrive at taxable income | G44: (2) | I44: =IF(ISBLANK(M44),"",IF(ISBLANK(E44),"",M44-E44)) ->  | Q44: =IF(ISBLANK(U44),"",IF(ISBLANK(M44),"",U44-M44)) ->  | Y44: =IF(ISBLANK(AC44),"",IF(ISBLANK(U44),"",AC44-U44)) -> 
C45: Utility Income Taxes and Rates:
C46: Income taxes (not grossed up) | I46: =IF(ISBLANK(M46),"",IF(ISBLANK(E46),"",M46-E46)) ->  | Q46: =IF(ISBLANK(U46),"",IF(ISBLANK(M46),"",U46-M46)) ->  | Y46: =IF(ISBLANK(AC46),"",IF(ISBLANK(U46),"",AC46-U46)) -> 
C47: Income taxes (grossed up) | E47: =IF(ISBLANK(E46),"",E46/(1-SUM(E49:E50))) ->  | M47: =IF(ISBLANK(M46),"",M46/(1-SUM(M49:M50))) ->  | U47: =IF(ISBLANK(U46),"",U46/(1-SUM(U49:U50))) ->  | AC47: =IF(ISBLANK(AC46),"",AC46/(1-SUM(AC49:AC50))) -> 
C48: Capital Taxes
C49: Federal tax (%) | E49: 0 | I49: =IF(ISBLANK(M49),"",IF(ISBLANK(E49),"",M49-E49)) ->  | Q49: =IF(ISBLANK(U49),"",IF(ISBLANK(M49),"",U49-M49)) ->  | Y49: =IF(ISBLANK(AC49),"",IF(ISBLANK(U49),"",AC49-U49)) -> 
C50: Provincial tax (%) | E50: 0 | I50: =IF(ISBLANK(M50),"",IF(ISBLANK(E50),"",M50-E50)) ->  | Q50: =IF(ISBLANK(U50),"",IF(ISBLANK(M50),"",U50-M50)) ->  | Y50: =IF(ISBLANK(AC50),"",IF(ISBLANK(U50),"",AC50-U50)) -> 
C51: Income Tax Credits | E51: 0 | I51: =IF(ISBLANK(M51),"",IF(ISBLANK(E51),"",M51-E51)) ->  | Q51: =IF(ISBLANK(U51),"",IF(ISBLANK(M51),"",U51-M51)) ->  | Y51: =IF(ISBLANK(AC51),"",IF(ISBLANK(U51),"",AC51-U51)) -> 
B53: 4 | C53: Capitalization/Cost of Capital
C54: Capital Structure:
C55: Long-term debt Capitalization Ratio (%) | E55: 0.56 | I55: =IF(ISBLANK(M55),"",IF(ISBLANK(E55),"",M55-E55)) ->  | Q55: =IF(ISBLANK(U55),"",IF(ISBLANK(M55),"",U55-M55)) ->  | Y55: =IF(ISBLANK(AC55),"",IF(ISBLANK(U55),"",AC55-U55)) -> 
C56: Short-term debt Capitalization Ratio (%) | E56: 0.04 | G56: (7) | I56: =IF(ISBLANK(M56),"",IF(ISBLANK(E56),"",M56-E56)) ->  | O56: (7) | Q56: =IF(ISBLANK(U56),"",IF(ISBLANK(M56),"",U56-M56)) ->  | W56: (7) | Y56: =IF(ISBLANK(AC56),"",IF(ISBLANK(U56),"",AC56-U56)) ->  | AE56: (7)
C57: Common Equity Capitalization Ratio (%) | E57: 0.4 | I57: =IF(ISBLANK(M57),"",IF(ISBLANK(E57),"",M57-E57)) ->  | Q57: =IF(ISBLANK(U57),"",IF(ISBLANK(M57),"",U57-M57)) ->  | Y57: =IF(ISBLANK(AC57),"",IF(ISBLANK(U57),"",AC57-U57)) -> 
C58: Prefered Shares Capitalization Ratio (%) | I58: =IF(ISBLANK(M58),"",IF(ISBLANK(E58),"",M58-E58)) ->  | Q58: =IF(ISBLANK(U58),"",IF(ISBLANK(M58),"",U58-M58)) ->  | Y58: =IF(ISBLANK(AC58),"",IF(ISBLANK(U58),"",AC58-U58)) -> 
E59: =SUM(E55:E58) -> 1 | M59: =SUM(M55:M58) -> 0 | U59: =SUM(U55:U58) -> 0 | AC59: =SUM(AC55:AC58) -> 0
E60: =IF(ISBLANK(E57),"",IF(SUM(E55:E58)=100%,"","Capital Structure must total 100%")) ->  | M60: =IF(ISBLANK(M57),"",IF(SUM(M55:M58)=100%,"","Capital Structure must total 100%")) ->  | U60: =IF(ISBLANK(U57),"",IF(SUM(U55:U58)=100%,"","Capital Structure must total 100%")) ->  | AC60: =IF(ISBLANK(AC57),"",IF(SUM(AC55:AC58)=100%,"","Capital Structure must total 100%")) -> 
C61: Cost of Capital
C62: Long-term debt Cost Rate (%) | E62: 0.04543627323 | I62: =IF(ISBLANK(M62),"",IF(ISBLANK(E62),"",M62-E62)) ->  | Q62: =IF(ISBLANK(U62),"",IF(ISBLANK(M62),"",U62-M62)) ->  | Y62: =IF(ISBLANK(AC62),"",IF(ISBLANK(U62),"",AC62-U62)) -> 
C63: Short-term debt Cost Rate (%) | E63: 0.0391 | I63: =IF(ISBLANK(M63),"",IF(ISBLANK(E63),"",M63-E63)) ->  | Q63: =IF(ISBLANK(U63),"",IF(ISBLANK(M63),"",U63-M63)) ->  | Y63: =IF(ISBLANK(AC63),"",IF(ISBLANK(U63),"",AC63-U63)) -> 
C64: Common Equity Cost Rate (%) | E64: 0.09 | I64: =IF(ISBLANK(M64),"",IF(ISBLANK(E64),"",M64-E64)) ->  | Q64: =IF(ISBLANK(U64),"",IF(ISBLANK(M64),"",U64-M64)) ->  | Y64: =IF(ISBLANK(AC64),"",IF(ISBLANK(U64),"",AC64-U64)) -> 
C65: Prefered Shares Cost Rate (%) | I65: =IF(ISBLANK(M65),"",IF(ISBLANK(E65),"",M65-E65)) ->  | Q65: =IF(ISBLANK(U65),"",IF(ISBLANK(M65),"",U65-M65)) ->  | Y65: =IF(ISBLANK(AC65),"",IF(ISBLANK(U65),"",AC65-U65)) -> 
A68: Notes:
B69: General | C69: Data inputs are required on Sheets 3. Data from Sheet 3 will automatically complete calculations on sheets 4 through 9 (Rate Base through Revenue Requirement). Sheets 4 through 9 do not require any inputs except for notes that the Applicant may wish to enter to support the results. Pale green cells are available on sheets 4 through 9 to enter both footnotes beside key cells and the related text for the notes at the bottom of each sheet.
B70: (1) | C70: Data in column E is for Application as originally filed. For updated revenue requirement as a result of interrogatory responses, technical or settlement conferences, etc., use column M and Adjustments in column I
B71: (2) | C71: Net of addbacks and deductions to arrive at taxable income.
B72: (3) | C72: Average of Gross Fixed Assets at beginning and end of the Test Year
B73: (4) | C73: Average of Accumulated Depreciation at the beginning and end of the Test Year. Enter as a negative amount.
B74: (5) | C74: Select option from drop-down list by clicking on cell M12 or U12. This column allows for the application update reflecting the end of discovery or Argument-in-Chief. Also, the outcome of any Settlement Process can be reflected. Beginning for 2023,two intermediate stages can be shown (e.g., Interrogatory Responses and Settlement Agreement).
B75: (6) | C75: Input total revenue offsets for deriving the base revenue requirement from the service revenue requirement. Enter a positive amount.
B76: (7) | C76: 4.0% unless an Applicant has proposed or been approved another amount.
B77: (8) | C77: The default Working Capital Allowance factor is 7.5% (of Cost of Power plus controllable expenses), per the letter issued by the Board on June 3, 2015. Alternatively, a WCA factor based on lead-lag study with supporting rationale could be provided. Some Applicants may have a unique rate as a result of a lead-lag study. The default rate for cost of service applications is 7.5%, per the letter issued by the Board on June 3, 2015.

Sheet Hidden_Data Input (hidden)
A1: Utility Name | B1: EB Number | C1: Test Year | D1: Bridge Year | E1: Last Rebasing Year | F1: Data Elements | G1: Heading | H1: Intital Application | I1: Per Board Decision
A2: ='1. Info'!$G$16 -> Five Nations Energy Inc. | B2: ='1. Info'!$G$20 -> EB-2025-0129 | C2: ='1. Info'!$G$28 -> 2026 | D2: ='1. Info'!$G$30 -> 2025 | E2: ='1. Info'!$G$32 -> 2018 | F2: Gross Fixed Assets (average) | G2: Rate Base | H2: ='3. Data_Input_Sheet'!E16 -> 98357924.89 | I2: ='3. Data_Input_Sheet'!U16 -> 0
A3: ='1. Info'!$G$16 -> Five Nations Energy Inc. | B3: ='1. Info'!$G$20 -> EB-2025-0129 | C3: ='1. Info'!$G$28 -> 2026 | D3: ='1. Info'!$G$30 -> 2025 | E3: ='1. Info'!$G$32 -> 2018 | F3: Accumulated Depreciation (average) | G3: Rate Base | H3: ='3. Data_Input_Sheet'!E17 -> -62043911.98 | I3: ='3. Data_Input_Sheet'!U17 -> 0
A4: ='1. Info'!$G$16 -> Five Nations Energy Inc. | B4: ='1. Info'!$G$20 -> EB-2025-0129 | C4: ='1. Info'!$G$28 -> 2026 | D4: ='1. Info'!$G$30 -> 2025 | E4: ='1. Info'!$G$32 -> 2018 | F4: Controllable Expenses | G4: Allowance for Working Capital | H4: ='3. Data_Input_Sheet'!E19 -> 6201581.84 | I4: ='3. Data_Input_Sheet'!U19 -> 0
A5: ='1. Info'!$G$16 -> Five Nations Energy Inc. | B5: ='1. Info'!$G$20 -> EB-2025-0129 | C5: ='1. Info'!$G$28 -> 2026 | D5: ='1. Info'!$G$30 -> 2025 | E5: ='1. Info'!$G$32 -> 2018 | F5: Cost of Power | G5: Allowance for Working Capital | H5: ='3. Data_Input_Sheet'!E20 -> 0 | I5: ='3. Data_Input_Sheet'!U20 -> 0
A6: ='1. Info'!$G$16 -> Five Nations Energy Inc. | B6: ='1. Info'!$G$20 -> EB-2025-0129 | C6: ='1. Info'!$G$28 -> 2026 | D6: ='1. Info'!$G$30 -> 2025 | E6: ='1. Info'!$G$32 -> 2018 | F6: Working Capital Rate (%) | G6: Allowance for Working Capital | H6: ='3. Data_Input_Sheet'!E21 -> 0.0355 | I6: ='3. Data_Input_Sheet'!U21 -> 0
A7: ='1. Info'!$G$16 -> Five Nations Energy Inc. | B7: ='1. Info'!$G$20 -> EB-2025-0129 | C7: ='1. Info'!$G$28 -> 2026 | D7: ='1. Info'!$G$30 -> 2025 | E7: ='1. Info'!$G$32 -> 2018 | F7: Distribution Revenue at Current Rates | G7: Utility Income | H7: ='3. Data_Input_Sheet'!E25 -> 7988092 | I7: ='3. Data_Input_Sheet'!U25 -> 0
A8: ='1. Info'!$G$16 -> Five Nations Energy Inc. | B8: ='1. Info'!$G$20 -> EB-2025-0129 | C8: ='1. Info'!$G$28 -> 2026 | D8: ='1. Info'!$G$30 -> 2025 | E8: ='1. Info'!$G$32 -> 2018 | F8: Distribution Revenue at Proposed Rates | G8: Utility Income | H8: ='3. Data_Input_Sheet'!E26 -> 10437495.35 | I8: ='3. Data_Input_Sheet'!U26 -> 0
A9: ='1. Info'!$G$16 -> Five Nations Energy Inc. | B9: ='1. Info'!$G$20 -> EB-2025-0129 | C9: ='1. Info'!$G$28 -> 2026 | D9: ='1. Info'!$G$30 -> 2025 | E9: ='1. Info'!$G$32 -> 2018 | F9: Specific Service Charges | G9: Other Revenue | H9: ='3. Data_Input_Sheet'!E28 -> 0 | I9: ='3. Data_Input_Sheet'!U28 -> 0
A10: ='1. Info'!$G$16 -> Five Nations Energy Inc. | B10: ='1. Info'!$G$20 -> EB-2025-0129 | C10: ='1. Info'!$G$28 -> 2026 | D10: ='1. Info'!$G$30 -> 2025 | E10: ='1. Info'!$G$32 -> 2018 | F10: Late Payment Charges | G10: Other Revenue | H10: ='3. Data_Input_Sheet'!E29 -> 0 | I10: ='3. Data_Input_Sheet'!U29 -> 0
A11: ='1. Info'!$G$16 -> Five Nations Energy Inc. | B11: ='1. Info'!$G$20 -> EB-2025-0129 | C11: ='1. Info'!$G$28 -> 2026 | D11: ='1. Info'!$G$30 -> 2025 | E11: ='1. Info'!$G$32 -> 2018 | F11: Other Distribution Revenue | G11: Other Revenue | H11: ='3. Data_Input_Sheet'!E30 -> 0 | I11: ='3. Data_Input_Sheet'!U30 -> 0
A12: ='1. Info'!$G$16 -> Five Nations Energy Inc. | B12: ='1. Info'!$G$16 -> Five Nations Energy Inc. | C12: ='1. Info'!$G$16 -> Five Nations Energy Inc. | D12: ='1. Info'!$G$16 -> Five Nations Energy Inc. | E12: ='1. Info'!$G$16 -> Five Nations Energy Inc. | F12: Other Income and Deductions | G12: Other Revenue | H12: ='3. Data_Input_Sheet'!E31 -> 80000 | I12: ='3. Data_Input_Sheet'!U31 -> 0
A13: ='1. Info'!$G$16 -> Five Nations Energy Inc. | B13: ='1. Info'!$G$16 -> Five Nations Energy Inc. | C13: ='1. Info'!$G$16 -> Five Nations Energy Inc. | D13: ='1. Info'!$G$16 -> Five Nations Energy Inc. | E13: ='1. Info'!$G$16 -> Five Nations Energy Inc. | F13: Total Revenue Offsets | G13: Other Revenue | H13: ='3. Data_Input_Sheet'!E33 -> 80000 | I13: ='3. Data_Input_Sheet'!U33 -> 0
A14: ='1. Info'!$G$16 -> Five Nations Energy Inc. | B14: ='1. Info'!$G$20 -> EB-2025-0129 | C14: ='1. Info'!$G$28 -> 2026 | D14: ='1. Info'!$G$30 -> 2025 | E14: ='1. Info'!$G$32 -> 2018 | F14: OM+A Expenses | G14: Operating Expenses | H14: ='3. Data_Input_Sheet'!E36 -> 6201581.84 | I14: ='3. Data_Input_Sheet'!U36 -> 0
A15: ='1. Info'!$G$16 -> Five Nations Energy Inc. | B15: ='1. Info'!$G$20 -> EB-2025-0129 | C15: ='1. Info'!$G$28 -> 2026 | D15: ='1. Info'!$G$30 -> 2025 | E15: ='1. Info'!$G$32 -> 2018 | F15: Depreciation/Amortization | G15: Operating Expenses | H15: ='3. Data_Input_Sheet'!E37 -> 2013957.15 | I15: ='3. Data_Input_Sheet'!U37 -> 0
A16: ='1. Info'!$G$16 -> Five Nations Energy Inc. | B16: ='1. Info'!$G$20 -> EB-2025-0129 | C16: ='1. Info'!$G$28 -> 2026 | D16: ='1. Info'!$G$30 -> 2025 | E16: ='1. Info'!$G$32 -> 2018 | F16: Property taxes | G16: Operating Expenses | H16: ='3. Data_Input_Sheet'!E38 -> 0 | I16: ='3. Data_Input_Sheet'!U38 -> 0
A17: ='1. Info'!$G$16 -> Five Nations Energy Inc. | B17: ='1. Info'!$G$20 -> EB-2025-0129 | C17: ='1. Info'!$G$28 -> 2026 | D17: ='1. Info'!$G$30 -> 2025 | E17: ='1. Info'!$G$32 -> 2018 | F17: Other expenses | G17: Operating Expenses | H17: ='3. Data_Input_Sheet'!E40 -> 0 | I17: ='3. Data_Input_Sheet'!U40 -> 0
A18: ='1. Info'!$G$16 -> Five Nations Energy Inc. | B18: ='1. Info'!$G$20 -> EB-2025-0129 | C18: ='1. Info'!$G$28 -> 2026 | D18: ='1. Info'!$G$30 -> 2025 | E18: ='1. Info'!$G$32 -> 2018 | F18: Adjustments required to arrive at taxable income | G18: Taxable Income | H18: ='3. Data_Input_Sheet'!E44 -> 0 | I18: ='3. Data_Input_Sheet'!U44 -> 0
A19: ='1. Info'!$G$16 -> Five Nations Energy Inc. | B19: ='1. Info'!$G$20 -> EB-2025-0129 | C19: ='1. Info'!$G$28 -> 2026 | D19: ='1. Info'!$G$30 -> 2025 | E19: ='1. Info'!$G$32 -> 2018 | F19: Income taxes (not grossed up) | G19: Utility Income Taxes | H19: ='3. Data_Input_Sheet'!E46 -> 0 | I19: ='3. Data_Input_Sheet'!U46 -> 0
A20: ='1. Info'!$G$16 -> Five Nations Energy Inc. | B20: ='1. Info'!$G$20 -> EB-2025-0129 | C20: ='1. Info'!$G$28 -> 2026 | D20: ='1. Info'!$G$30 -> 2025 | E20: ='1. Info'!$G$32 -> 2018 | F20: Federal tax (%) | G20: Income taxes (grossed up) | H20: ='3. Data_Input_Sheet'!E49 -> 0 | I20: ='3. Data_Input_Sheet'!U49 -> 0
A21: ='1. Info'!$G$16 -> Five Nations Energy Inc. | B21: ='1. Info'!$G$20 -> EB-2025-0129 | C21: ='1. Info'!$G$28 -> 2026 | D21: ='1. Info'!$G$30 -> 2025 | E21: ='1. Info'!$G$32 -> 2018 | F21: Provincial tax (%) | G21: Income taxes (grossed up) | H21: ='3. Data_Input_Sheet'!E50 -> 0 | I21: ='3. Data_Input_Sheet'!U50 -> 0
A22: ='1. Info'!$G$16 -> Five Nations Energy Inc. | B22: ='1. Info'!$G$20 -> EB-2025-0129 | C22: ='1. Info'!$G$28 -> 2026 | D22: ='1. Info'!$G$30 -> 2025 | E22: ='1. Info'!$G$32 -> 2018 | F22: Income Tax Credits | G22: Income taxes (grossed up) | H22: ='3. Data_Input_Sheet'!E51 -> 0 | I22: ='3. Data_Input_Sheet'!U51 -> 0
A23: ='1. Info'!$G$16 -> Five Nations Energy Inc. | B23: ='1. Info'!$G$20 -> EB-2025-0129 | C23: ='1. Info'!$G$28 -> 2026 | D23: ='1. Info'!$G$30 -> 2025 | E23: ='1. Info'!$G$32 -> 2018 | F23: Long-term debt Capitalization Ratio (%) | G23: Capitalization | H23: ='3. Data_Input_Sheet'!E55 -> 0.56 | I23: ='3. Data_Input_Sheet'!U55 -> 0
A24: ='1. Info'!$G$16 -> Five Nations Energy Inc. | B24: ='1. Info'!$G$20 -> EB-2025-0129 | C24: ='1. Info'!$G$28 -> 2026 | D24: ='1. Info'!$G$30 -> 2025 | E24: ='1. Info'!$G$32 -> 2018 | F24: Short-term debt Capitalization Ratio (%) | G24: Capitalization | H24: ='3. Data_Input_Sheet'!E56 -> 0.04 | I24: ='3. Data_Input_Sheet'!U56 -> 0
A25: ='1. Info'!$G$16 -> Five Nations Energy Inc. | B25: ='1. Info'!$G$20 -> EB-2025-0129 | C25: ='1. Info'!$G$28 -> 2026 | D25: ='1. Info'!$G$30 -> 2025 | E25: ='1. Info'!$G$32 -> 2018 | F25: Common Equity Capitalization Ratio (%) | G25: Capitalization | H25: ='3. Data_Input_Sheet'!E57 -> 0.4 | I25: ='3. Data_Input_Sheet'!U57 -> 0
A26: ='1. Info'!$G$16 -> Five Nations Energy Inc. | B26: ='1. Info'!$G$20 -> EB-2025-0129 | C26: ='1. Info'!$G$28 -> 2026 | D26: ='1. Info'!$G$30 -> 2025 | E26: ='1. Info'!$G$32 -> 2018 | F26: Prefered Shares Capitalization Ratio (%) | G26: Capitalization | H26: ='3. Data_Input_Sheet'!E58 -> 0 | I26: ='3. Data_Input_Sheet'!U58 -> 0
A27: ='1. Info'!$G$16 -> Five Nations Energy Inc. | B27: ='1. Info'!$G$20 -> EB-2025-0129 | C27: ='1. Info'!$G$28 -> 2026 | D27: ='1. Info'!$G$30 -> 2025 | E27: ='1. Info'!$G$32 -> 2018 | F27: Long-term debt Cost Rate (%) | G27: Cost of Capital | H27: ='3. Data_Input_Sheet'!E62 -> 0.04543627323 | I27: ='3. Data_Input_Sheet'!U62 -> 0
A28: ='1. Info'!$G$16 -> Five Nations Energy Inc. | B28: ='1. Info'!$G$20 -> EB-2025-0129 | C28: ='1. Info'!$G$28 -> 2026 | D28: ='1. Info'!$G$30 -> 2025 | E28: ='1. Info'!$G$32 -> 2018 | F28: Short-term debt Cost Rate (%) | G28: Cost of Capital | H28: ='3. Data_Input_Sheet'!E63 -> 0.0391 | I28: ='3. Data_Input_Sheet'!U63 -> 0
A29: ='1. Info'!$G$16 -> Five Nations Energy Inc. | B29: ='1. Info'!$G$20 -> EB-2025-0129 | C29: ='1. Info'!$G$28 -> 2026 | D29: ='1. Info'!$G$30 -> 2025 | E29: ='1. Info'!$G$32 -> 2018 | F29: Common Equity Cost Rate (%) | G29: Cost of Capital | H29: ='3. Data_Input_Sheet'!E64 -> 0.09 | I29: ='3. Data_Input_Sheet'!U64 -> 0
A30: ='1. Info'!$G$16 -> Five Nations Energy Inc. | B30: ='1. Info'!$G$20 -> EB-2025-0129 | C30: ='1. Info'!$G$28 -> 2026 | D30: ='1. Info'!$G$30 -> 2025 | E30: ='1. Info'!$G$32 -> 2018 | F30: Prefered Shares Cost Rate (%) | G30: Cost of Capital | H30: ='3. Data_Input_Sheet'!E65 -> 0 | I30: ='3. Data_Input_Sheet'!U65 -> 0

Sheet 4. Rate_Base
B6: Rate Base and Working Capital
D10: Rate Base
B11: Line No. | D11: Particulars | G11: Initial Application | K11: =IF(ISBLANK('3. Data_Input_Sheet'!M12),"",'3. Data_Input_Sheet'!I12) -> Adjustments | O11: =IF(ISBLANK('3. Data_Input_Sheet'!M12)," ",'3. Data_Input_Sheet'!M12) -> Interrogatory Responses | S11: =IF(ISBLANK('3. Data_Input_Sheet'!Q12),"",'3. Data_Input_Sheet'!Q12) -> Adjustments | W11: =IF(ISBLANK('3. Data_Input_Sheet'!U12)," ",'3. Data_Input_Sheet'!U12) -> Settlement Agreement | Y11: =IF(ISBLANK('3. Data_Input_Sheet'!Y12),"",'3. Data_Input_Sheet'!Y12) -> Adjustments | AC11: =IF(ISBLANK('3. Data_Input_Sheet'!AC12)," ",'3. Data_Input_Sheet'!AC12) -> Per Board Decision
B13: 1 | D13: Gross Fixed Assets (average) | E13: (2) | G13: =IFERROR('3. Data_Input_Sheet'!E16,0) -> 98357924.89 | K13: =IFERROR('3. Data_Input_Sheet'!I16,0) ->  | O13: =IFERROR(G13+K13,0) -> 0 | S13: ='3. Data_Input_Sheet'!Q16 ->  | W13: =IFERROR(G13+K13+S13,0) -> 0 | Y13: ='3. Data_Input_Sheet'!Y16 ->  | AC13: =IFERROR(Y13+W13,0) -> 0
B14: 2 | D14: Accumulated Depreciation (average) | E14: (2) | G14: =IFERROR('3. Data_Input_Sheet'!E17,0) -> -62043911.98 | K14: =IFERROR('3. Data_Input_Sheet'!I17,0) ->  | O14: =IFERROR(G14+K14,0) -> 0 | S14: ='3. Data_Input_Sheet'!Q17 ->  | W14: =IFERROR(G14+K14+S14,0) -> 0 | Y14: ='3. Data_Input_Sheet'!Y17 ->  | AC14: =IFERROR(Y14+W14,0) -> 0
B15: 3 | D15: Net Fixed Assets (average) | E15: (2) | G15: =IFERROR(SUM(G13:G14),0) -> 36314012.91 | K15: =IFERROR(SUM(K13:K14),0) -> 0 | O15: =SUM(O13:O14) -> 0 | S15: =IFERROR(SUM(S13:S14),0) -> 0 | W15: =IFERROR(SUM(W13:W14),0) -> 0 | Y15: =IFERROR(SUM(Y13:Y14),0) -> 0 | AC15: =IFERROR(SUM(AC13:AC14),0) -> 0
B17: 4 | D17: Allowance for Working Capital | E17: (1) | G17: =IFERROR(G30,0) -> 220156.1553 | K17: =IFERROR(K30,0) -> -220156.1553 | O17: =IFERROR(O30,0) -> 0 | S17: =IFERROR(S30,0) -> 0 | W17: =IFERROR(W30,0) -> 0 | Y17: =IFERROR(Y30,0) -> 0 | AC17: =IFERROR(AC30,0) -> 0
B19: 5 | D19: Total Rate Base | G19: =IFERROR(G17+G15,0) -> 36534169.07 | K19: =IFERROR(K17+K15,0) -> -220156.1553 | O19: =IFERROR(O17+O15,0) -> 0 | S19: =IFERROR(S17+S15,0) -> 0 | W19: =IFERROR(W15+W17,0) -> 0 | Y19: =IFERROR(Y17+Y15,0) -> 0 | AC19: =IFERROR(AC15+AC17,0) -> 0
C20: (1) | D20: Allowance for Working Capital - Derivation
B24: 6 | D24: Controllable Expenses | G24: =IFERROR('3. Data_Input_Sheet'!E19,0) -> 6201581.84 | K24: ='3. Data_Input_Sheet'!I19 ->  | O24: =IFERROR(G24+K24,0) -> 0 | S24: ='3. Data_Input_Sheet'!Q19 ->  | W24: =IFERROR(G24+K24+S24,0) -> 0 | Y24: ='3. Data_Input_Sheet'!Y19 ->  | AC24: =IFERROR(Y24+W24,0) -> 0
B25: 7 | D25: Cost of Power | G25: =IFERROR('3. Data_Input_Sheet'!E20,0) -> 0 | K25: ='3. Data_Input_Sheet'!I20 ->  | O25: =IFERROR(G25+K25,0) -> 0 | S25: ='3. Data_Input_Sheet'!Q20 ->  | W25: =IFERROR(G25+K25+S25,0) -> 0 | Y25: ='3. Data_Input_Sheet'!Y20 ->  | AC25: =IFERROR(Y25+W25,0) -> 0
B26: 8 | D26: Working Capital Base | G26: =IFERROR(SUM(G24:G25),0) -> 6201581.84 | K26: =IFERROR(K24+K25,0) -> 0 | O26: =SUM(O24:O25) -> 0 | S26: =IFERROR(S24+S25,0) -> 0 | W26: =IFERROR(SUM(W24:W25),0) -> 0 | Y26: =IFERROR(Y24+Y25,0) -> 0 | AC26: =IFERROR(SUM(AC24:AC25),0) -> 0
B28: 9 | D28: Working Capital Rate % | E28: (1) | G28: =IFERROR('3. Data_Input_Sheet'!E21,0) -> 0.0355 | K28: =IFERROR(O28-G28,0) -> -0.0355 | O28: =IFERROR('3. Data_Input_Sheet'!M21,0) -> 0 | S28: =IFERROR(W28-O28,0) -> 0 | W28: =IFERROR('3. Data_Input_Sheet'!U21,0) -> 0 | Y28: =IFERROR(AC28-W28,0) -> 0 | AC28: =IFERROR('3. Data_Input_Sheet'!AC21,0) -> 0
B30: 10 | D30: Working Capital Allowance | G30: =IFERROR(G26*G28,0) -> 220156.1553 | K30: =IFERROR(O30-G30,0) -> -220156.1553 | O30: =IFERROR(O26*O28,0) -> 0 | S30: =IFERROR(W30-O30,0) -> 0 | W30: =IFERROR(W26*W28,0) -> 0 | Y30: =IFERROR(AC30-W30,0) -> 0 | AC30: =IFERROR(AC26*AC28,0) -> 0
B33: Notes
B34: (1) | D34: Some Applicants may have a unique rate as a result of a lead-lag study. The default rate for cost of service applications is 7.5%, per the letter issued by the OEB on June 3, 2015.
B35: (2) | D35: Average of opening and closing balances for the year.

Sheet 5. Utility Income
B11: Utility Income
B13: Line No. | D13: Particulars | F13: Initial Application | J13: =IF(N13="","","Adjustments") -> Adjustments | N13: =IF(ISBLANK('3. Data_Input_Sheet'!M12),"",'3. Data_Input_Sheet'!M12) -> Interrogatory Responses | R13: =IF(N13="","","Adjustments") -> Adjustments | V13: =IF(ISBLANK('3. Data_Input_Sheet'!U12),"",'3. Data_Input_Sheet'!U12) -> Settlement Agreement | Z13: =IF(V13="","","Adjustments") -> Adjustments | AD13: ='3. Data_Input_Sheet'!AC12 -> Per Board Decision
D15: Operating Revenues:
B16: 1 | D16: Distribution Revenue (at Proposed Rates) | F16: ='3. Data_Input_Sheet'!E26 -> 10437495.35 | J16: =N16-F16 -> -10437495.35 | N16: ='3. Data_Input_Sheet'!M26 -> 0 | R16: =V16-N16 -> 0 | V16: =IF(ISBLANK('3. Data_Input_Sheet'!U26),'5. Utility Income'!N16,'3. Data_Input_Sheet'!U26) -> 0 | Z16: =AD16-V16 -> 0 | AD16: =IF(ISBLANK('3. Data_Input_Sheet'!AC26),'5. Utility Income'!V16,'3. Data_Input_Sheet'!AC26) -> 0
B17: 2 | D17: Other Revenue | E17: (1) | F17: =F48 -> 80000 | J17: =N17-F17 -> -80000 | N17: =N48 -> 0 | R17: =V17-N17 -> 0 | V17: =V48 -> 0 | Z17: =AD17-V17 -> 0 | AD17: =AD48 -> 0
F18: =SUM(F16:F17) -> 10517495.35 | J18: =SUM(J16:J17) -> -10517495.35 | N18: =SUM(N16:N17) -> 0 | R18: =SUM(R16:R17) -> 0 | V18: =SUM(V16:V17) -> 0 | Z18: =SUM(Z16:Z17) -> 0 | AD18: =SUM(AD16:AD17) -> 0
B19: 3 | D19: Total Operating Revenues
D21: Operating Expenses:
B22: 4 | D22: OM+A Expenses | F22: ='3. Data_Input_Sheet'!E36 -> 6201581.84 | J22: ='3. Data_Input_Sheet'!I36 ->  | N22: ='3. Data_Input_Sheet'!M36 -> 0 | R22: ='3. Data_Input_Sheet'!Q36 ->  | V22: ='3. Data_Input_Sheet'!U36 -> 0 | Z22: ='3. Data_Input_Sheet'!Y36 ->  | AD22: ='3. Data_Input_Sheet'!AC36 -> 0
B23: 5 | D23: Depreciation/Amortization | F23: ='3. Data_Input_Sheet'!E37 -> 2013957.15 | J23: ='3. Data_Input_Sheet'!I37 ->  | N23: ='3. Data_Input_Sheet'!M37 -> 0 | R23: ='3. Data_Input_Sheet'!Q37 ->  | V23: ='3. Data_Input_Sheet'!U37 -> 0 | Z23: ='3. Data_Input_Sheet'!Y37 ->  | AD23: ='3. Data_Input_Sheet'!AC37 -> 0
B24: 6 | D24: Property taxes | F24: ='3. Data_Input_Sheet'!E38 -> 0 | J24: ='3. Data_Input_Sheet'!I38 ->  | N24: ='3. Data_Input_Sheet'!M38 -> 0 | R24: ='3. Data_Input_Sheet'!Q38 ->  | V24: ='3. Data_Input_Sheet'!U38 -> 0 | Z24: ='3. Data_Input_Sheet'!Y38 ->  | AD24: ='3. Data_Input_Sheet'!AC38 -> 0
B25: 7 | D25: Capital taxes | F25: ='6. Taxes_PILs'!G25 -> 0 | J25: =N25-F25 -> 0 | N25: ='6. Taxes_PILs'!K25 -> 0 | R25: =V25-N25 -> 0 | V25: ='6. Taxes_PILs'!O25 -> 0 | Z25: =AD25-V25 -> 0 | AD25: ='6. Taxes_PILs'!W25 -> 0
B26: 8 | D26: Other expense | F26: ='3. Data_Input_Sheet'!E40 -> 0 | J26: ='3. Data_Input_Sheet'!I40 ->  | N26: ='3. Data_Input_Sheet'!M40 -> 0 | R26: ='3. Data_Input_Sheet'!Q40 ->  | V26: ='3. Data_Input_Sheet'!U40 -> 0 | Z26: ='3. Data_Input_Sheet'!Y40 ->  | AD26: ='3. Data_Input_Sheet'!AC40 -> 0
F27: =SUM(F22:F26) -> 8215538.99 | J27: =SUM(J22:J26) -> 0 | N27: =SUM(N22:N26) -> 0 | R27: =SUM(R22:R26) -> 0 | V27: =SUM(V22:V26) -> 0 | Z27: =SUM(Z22:Z26) -> 0 | AD27: =SUM(AD22:AD26) -> 0
B28: 9 | D28: Subtotal (lines 4 to 8)
B30: 10 | D30: Deemed Interest Expense | F30: ='7. Cost_of_Capital'!P19 -> 986726.2737 | J30: =N30-F30 -> -986726.2737 | N30: ='7. Cost_of_Capital'!P35 -> 0 | R30: =V30-N30 -> 0 | V30: ='7. Cost_of_Capital'!P51 -> 0 | Z30: =AD30-V30 -> 0 | AD30: ='7. Cost_of_Capital'!P67 -> 0
B32: 11 | D32: Total Expenses (lines 9 to 10) | F32: =F27+F30 -> 9202265.264 | J32: =J30+J27 -> -986726.2737 | N32: =N30+N27 -> 0 | R32: =R30+R27 -> 0 | V32: =V27+V30 -> 0 | Z32: =Z30+Z27 -> 0 | AD32: =AD27+AD30 -> 0
B34: 12 | D34: Utility income before income taxes | F34: =F18-(F32) -> 1315230.086 | J34: =J18-(J32) -> -9530769.076 | N34: =N18-(N32) -> 0 | R34: =R18-(R32) -> 0 | V34: =V18-(V32) -> 0 | Z34: =Z18-(Z32) -> 0 | AD34: =AD18-(AD32) -> 0
F35: ='6. Taxes_PILs'!G31 -> 0 | J35: =N35-F35 -> 0 | N35: ='6. Taxes_PILs'!K31 -> 0 | R35: =V35-N35 -> 0 | V35: =IF('6. Taxes_PILs'!O31=0,N35,'6. Taxes_PILs'!O31) -> 0 | Z35: =AD35-V35 -> 0 | AD35: =IF('6. Taxes_PILs'!S31=0,V35,'6. Taxes_PILs'!S31) -> 0
B36: 13 | D36: Income taxes (grossed-up)
F37: =F34-F35 -> 1315230.086 | J37: =J34-J35 -> -9530769.076 | N37: =N34-N35 -> 0 | R37: =R34-R35 -> 0 | V37: =V34-V35 -> 0 | Z37: =Z34-Z35 -> 0 | AD37: =AD34-AD35 -> 0
B38: 14 | D38: Utility net income
B44: (1) | D44: Specific Service Charges | F44: ='3. Data_Input_Sheet'!E28 -> 0 | J44: ='3. Data_Input_Sheet'!I28 ->  | N44: ='3. Data_Input_Sheet'!M28 -> 0 | R44: ='3. Data_Input_Sheet'!Q28 ->  | V44: =IF(ISBLANK('3. Data_Input_Sheet'!U28),N44,'3. Data_Input_Sheet'!U28) -> 0 | Z44: ='3. Data_Input_Sheet'!Y28 ->  | AD44: =IF(ISBLANK('3. Data_Input_Sheet'!AC28),V44,'3. Data_Input_Sheet'!AC28) -> 0
D45: Late Payment Charges | F45: ='3. Data_Input_Sheet'!E29 -> 0 | J45: ='3. Data_Input_Sheet'!I29 ->  | N45: ='3. Data_Input_Sheet'!M29 -> 0 | R45: ='3. Data_Input_Sheet'!Q29 ->  | V45: =IF(ISBLANK('3. Data_Input_Sheet'!U29),N45,'3. Data_Input_Sheet'!U29) -> 0 | Z45: ='3. Data_Input_Sheet'!Y29 ->  | AD45: =IF(ISBLANK('3. Data_Input_Sheet'!AC29),V45,'3. Data_Input_Sheet'!AC29) -> 0
D46: Other Distribution Revenue | F46: ='3. Data_Input_Sheet'!E30 -> 0 | J46: ='3. Data_Input_Sheet'!I30 ->  | N46: ='3. Data_Input_Sheet'!M30 -> 0 | R46: ='3. Data_Input_Sheet'!Q30 ->  | V46: =IF(ISBLANK('3. Data_Input_Sheet'!U30),N46,'3. Data_Input_Sheet'!U30) -> 0 | Z46: ='3. Data_Input_Sheet'!Y30 ->  | AD46: =IF(ISBLANK('3. Data_Input_Sheet'!AC30),V46,'3. Data_Input_Sheet'!AC30) -> 0
D47: Other Income and Deductions | F47: ='3. Data_Input_Sheet'!E31 -> 80000 | J47: ='3. Data_Input_Sheet'!I31 ->  | N47: ='3. Data_Input_Sheet'!M31 -> 0 | R47: ='3. Data_Input_Sheet'!Q31 ->  | V47: =IF(ISBLANK('3. Data_Input_Sheet'!U31),N47,'3. Data_Input_Sheet'!U31) -> 0 | Z47: ='3. Data_Input_Sheet'!Y31 ->  | AD47: =IF(ISBLANK('3. Data_Input_Sheet'!AC31),V47,'3. Data_Input_Sheet'!AC31) -> 0
F48: =SUM(F44:F47) -> 80000 | J48: =SUM(J44:J47) -> 0 | N48: =SUM(N44:N47) -> 0 | R48: =SUM(R44:R47) -> 0 | V48: =SUM(V44:V47) -> 0 | Z48: =SUM(Z44:Z47) -> 0 | AD48: =SUM(AD44:AD47) -> 0
D49: Total Revenue Offsets
B51: Notes

Sheet 6. Taxes_PILs
B9: Taxes/PILs
B12: Line No. | D12: Particulars | G12: Application | K12: =IF(ISBLANK('3. Data_Input_Sheet'!M12),"",'3. Data_Input_Sheet'!M12) -> Interrogatory Responses | O12: =IF(ISBLANK('3. Data_Input_Sheet'!U12),"",'3. Data_Input_Sheet'!U12) -> Settlement Agreement | S12: ='3. Data_Input_Sheet'!AC12 -> Per Board Decision
D14: Determination of Taxable Income
B16: 1 | D16: Utility net income before taxes | G16: ='7. Cost_of_Capital'!P22 -> 1315230.086 | K16: ='7. Cost_of_Capital'!P38 -> 0 | O16: ='7. Cost_of_Capital'!P54 -> 0 | S16: ='7. Cost_of_Capital'!P70 -> 0
B18: 2 | D18: Adjustments required to arrive at taxable utility income | G18: ='3. Data_Input_Sheet'!E44 -> 0 | K18: ='3. Data_Input_Sheet'!M44 -> 0 | O18: =IF(ISBLANK('3. Data_Input_Sheet'!U44),K18,'3. Data_Input_Sheet'!U44) -> 0 | S18: =IF(ISBLANK('3. Data_Input_Sheet'!AC44),O18,'3. Data_Input_Sheet'!AC44) -> 0
B20: 3 | D20: Taxable income | G20: =G16+G18 -> 1315230.086 | K20: =K16+K18 -> 0 | O20: =O16+O18 -> 0 | S20: =S16+S18 -> 0
D22: Calculation of Utility income Taxes
B24: 4 | D24: Income taxes | G24: ='3. Data_Input_Sheet'!E46 -> 0 | K24: =IF(ISBLANK('3. Data_Input_Sheet'!M46),'6. Taxes_PILs'!G24,'3. Data_Input_Sheet'!M46) -> 0 | O24: =IF(ISBLANK('3. Data_Input_Sheet'!U46),'6. Taxes_PILs'!K24,'3. Data_Input_Sheet'!U46) -> 0 | S24: =IF(ISBLANK('3. Data_Input_Sheet'!AC46),'6. Taxes_PILs'!O24,'3. Data_Input_Sheet'!AC46) -> 0
B25: 5 | D25: Capital taxes | G25: ='3. Data_Input_Sheet'!E48 -> 0 | K25: =IF(ISBLANK('3. Data_Input_Sheet'!M48),'6. Taxes_PILs'!G25,'3. Data_Input_Sheet'!M48) -> 0 | O25: =IF(ISBLANK('3. Data_Input_Sheet'!U48),'6. Taxes_PILs'!K25,'3. Data_Input_Sheet'!U48) -> 0 | S25: =IF(ISBLANK('3. Data_Input_Sheet'!Y48),'6. Taxes_PILs'!O25,'3. Data_Input_Sheet'!Y48) -> 0
G26: =SUM(G24:G25) -> 0 | K26: =SUM(K24:K25) -> 0 | O26: =SUM(O24:O25) -> 0 | S26: =SUM(S24:S25) -> 0
B27: 6 | D27: Total taxes
B29: 7 | D29: Gross-up of Income Taxes | G29: =(G24/(1-G41))-G24 -> 0 | K29: =(K24/(1-K41))-K24 -> 0 | O29: =(O24/(1-O41))-O24 -> 0 | S29: =(S24/(1-S41))-S24 -> 0
B31: 8 | D31: Grossed-up Income Taxes | G31: =G24+G29 -> 0 | K31: =K24+K29 -> 0 | O31: =O24+O29 -> 0 | S31: =S24+S29 -> 0
B33: 9 | D33: PILs / tax Allowance (Grossed-up Income taxes + Capital taxes) | G33: =G26+G29 -> 0 | K33: =K29+K26 -> 0 | O33: =O29+O26 -> 0 | S33: =S29+S26 -> 0
B35: 10 | D35: Other tax Credits | G35: ='3. Data_Input_Sheet'!E51 -> 0 | K35: =IF(ISBLANK('3. Data_Input_Sheet'!M51),G35,'3. Data_Input_Sheet'!M51) -> 0 | O35: =IF(ISBLANK('3. Data_Input_Sheet'!U51),K35,'3. Data_Input_Sheet'!U51) -> 0 | S35: =IF(ISBLANK('3. Data_Input_Sheet'!AC51),O35,'3. Data_Input_Sheet'!AC51) -> 0
D37: Tax Rates
B39: 11 | D39: Federal tax (%) | G39: ='3. Data_Input_Sheet'!E49 -> 0 | K39: =IF(ISBLANK('3. Data_Input_Sheet'!M49),G39,'3. Data_Input_Sheet'!M49) -> 0 | O39: =IF(ISBLANK('3. Data_Input_Sheet'!U49),K39,'3. Data_Input_Sheet'!U49) -> 0 | S39: =IF(ISBLANK('3. Data_Input_Sheet'!AC49),O39,'3. Data_Input_Sheet'!AC49) -> 0
B40: 12 | D40: Provincial tax (%) | G40: ='3. Data_Input_Sheet'!E50 -> 0 | K40: =IF(ISBLANK('3. Data_Input_Sheet'!M50),G40,'3. Data_Input_Sheet'!M50) -> 0 | O40: =IF(ISBLANK('3. Data_Input_Sheet'!U50),K40,'3. Data_Input_Sheet'!U50) -> 0 | S40: =IF(ISBLANK('3. Data_Input_Sheet'!AC50),O40,'3. Data_Input_Sheet'!AC50) -> 0
B41: 13 | D41: Total tax rate (%) | G41: =G39+G40 -> 0 | K41: =K39+K40 -> 0 | O41: =O39+O40 -> 0 | S41: =S39+S40 -> 0
B44: Notes
D45: Capital Taxes not applicable after July 1, 2010 (i.e. for 2011 and later test years)

Sheet 7. Cost_of_Capital
B5: Capitalization/Cost of Capital
B11: Line No. | D11: Particulars | F11: Capitalization Ratio | L11: Cost Rate | P11: Return
F13: Initial Application
F15: (%) | J15: ($) | L15: (%) | P15: ($)
D16: Debt
B17: 1 | D17: Long-term Debt | F17: ='3. Data_Input_Sheet'!E55 -> 0.56 | J17: =$J$26*F17 -> 20459134.68 | L17: ='3. Data_Input_Sheet'!E62 -> 0.04543627323 | P17: =L17*J17 -> 929586.8333
B18: 2 | D18: Short-term Debt | F18: ='3. Data_Input_Sheet'!E56 -> 0.04 | J18: =$J$26*F18 -> 1461366.763 | L18: ='3. Data_Input_Sheet'!E63 -> 0.0391 | P18: =L18*J18 -> 57139.44042
B19: 3 | D19: Total Debt | F19: =SUM(F17:F18) -> 0.6 | J19: =SUM(J17:J18) -> 21920501.44 | L19: =IF(F19=0,0,SUMPRODUCT(F17:F18,L17:L18)/F19) -> 0.04501385502 | P19: =SUM(P17:P18) -> 986726.2737
D21: Equity
B22: 4 | D22: Common Equity | F22: ='3. Data_Input_Sheet'!E57 -> 0.4 | J22: =$J$26*F22 -> 14613667.63 | L22: ='3. Data_Input_Sheet'!E64 -> 0.09 | P22: =L22*J22 -> 1315230.086
B23: 5 | D23: Preferred Shares | F23: ='3. Data_Input_Sheet'!E58 -> 0 | J23: =$J$26*F23 -> 0 | L23: ='3. Data_Input_Sheet'!E65 -> 0 | P23: =L23*J23 -> 0
B24: 6 | D24: Total Equity | F24: =SUM(F22:F23) -> 0.4 | J24: =SUM(J22:J23) -> 14613667.63 | L24: =IF(F24=0,0,SUMPRODUCT(F22:F23,L22:L23)/F24) -> 0.09 | P24: =SUM(P22:P23) -> 1315230.086
B26: 7 | D26: Total | F26: =SUM(F19,F24) -> 1 | J26: ='4. Rate_Base'!G19 -> 36534169.07 | L26: =(L19*F19)+(L24*F24) -> 0.06300831301 | P26: =P19+P24 -> 2301956.36
F29: ='1. Info'!AC1 -> Interrogatory Responses
F31: (%) | J31: ($) | L31: (%) | P31: ($)
D32: Debt
B33: 1 | D33: Long-term Debt | F33: ='3. Data_Input_Sheet'!M55 -> 0 | J33: =$J$42*F33 -> 0 | L33: ='3. Data_Input_Sheet'!M62 -> 0 | P33: =L33*J33 -> 0
B34: 2 | D34: Short-term Debt | F34: ='3. Data_Input_Sheet'!M56 -> 0 | J34: =$J$42*F34 -> 0 | L34: ='3. Data_Input_Sheet'!M63 -> 0 | P34: =L34*J34 -> 0
B35: 3 | D35: Total Debt | F35: =SUM(F33:F34) -> 0 | J35: =SUM(J33:J34) -> 0 | L35: =IF(F35=0,0,SUMPRODUCT(F33:F34,L33:L34)/F35) -> 0 | P35: =SUM(P33:P34) -> 0
D37: Equity
B38: 4 | D38: Common Equity | F38: ='3. Data_Input_Sheet'!M57 -> 0 | J38: =$J$42*F38 -> 0 | L38: ='3. Data_Input_Sheet'!M64 -> 0 | P38: =L38*J38 -> 0
B39: 5 | D39: Preferred Shares | F39: ='3. Data_Input_Sheet'!M58 -> 0 | J39: =$J$42*F39 -> 0 | L39: ='3. Data_Input_Sheet'!M65 -> 0 | P39: =L39*J39 -> 0
B40: 6 | D40: Total Equity | F40: =SUM(F38:F39) -> 0 | J40: =SUM(J38:J39) -> 0 | L40: =IF(F40=0,0,SUMPRODUCT(F38:F39,L38:L39)/F40) -> 0 | P40: =SUM(P38:P39) -> 0
B42: 7 | D42: Total | F42: =F35+F40 -> 0 | J42: ='4. Rate_Base'!O19 -> 0 | L42: =(L35*F35)+(L40*F40) -> 0 | P42: =P35+P40 -> 0
F45: ='1. Info'!AC2 -> Settlement Agreement
F47: (%) | J47: ($) | L47: (%) | P47: ($)
D48: Debt
B49: 8 | D49: Long-term Debt | F49: =IF(ISBLANK('3. Data_Input_Sheet'!U55),F33,'3. Data_Input_Sheet'!U55) -> 0 | J49: =$J$58*F49 -> 0 | L49: =IF(ISBLANK('3. Data_Input_Sheet'!U62),L17,'3. Data_Input_Sheet'!U62) -> 0.04543627323 | P49: =L49*J49 -> 0
B50: 9 | D50: Short-term Debt | F50: =IF(ISBLANK('3. Data_Input_Sheet'!U56),F34,'3. Data_Input_Sheet'!U56) -> 0 | J50: =$J$58*F50 -> 0 | L50: =IF(ISBLANK('3. Data_Input_Sheet'!U63),L18,'3. Data_Input_Sheet'!U63) -> 0.0391 | P50: =L50*J50 -> 0
B51: 10 | D51: Total Debt | F51: =SUM(F49:F50) -> 0 | J51: =SUM(J49:J50) -> 0 | L51: =IF(F51=0,0,SUMPRODUCT(F49:F50,L49:L50)/F51) -> 0 | P51: =SUM(P49:P50) -> 0
D53: Equity
B54: 11 | D54: Common Equity | F54: =IF(ISBLANK('3. Data_Input_Sheet'!U57),F38,'3. Data_Input_Sheet'!U57) -> 0 | J54: =$J$58*F54 -> 0 | L54: =IF(ISBLANK('3. Data_Input_Sheet'!U64),L22,'3. Data_Input_Sheet'!U64) -> 0.09 | P54: =L54*J54 -> 0
B55: 12 | D55: Preferred Shares | F55: =IF(ISBLANK('3. Data_Input_Sheet'!U58),F39,'3. Data_Input_Sheet'!U58) -> 0 | J55: =$J$58*F55 -> 0 | L55: =IF(ISBLANK('3. Data_Input_Sheet'!U65),L23,'3. Data_Input_Sheet'!U65) -> 0 | P55: =L55*J55 -> 0
B56: 13 | D56: Total Equity | F56: =SUM(F54:F55) -> 0 | J56: =SUM(J54:J55) -> 0 | L56: =IF(F56=0,0,SUMPRODUCT(F54:F55,L54:L55)/F56) -> 0 | P56: =SUM(P54:P55) -> 0
B58: 14 | D58: Total | F58: =F51+F56 -> 0 | J58: ='4. Rate_Base'!W19 -> 0 | L58: =(L51*F51)+(L56*F56) -> 0 | P58: =P51+P56 -> 0
F61: Per Board Decision
F63: (%) | J63: ($) | L63: (%) | P63: ($)
D64: Debt
B65: 8 | D65: Long-term Debt | F65: =IF(ISBLANK('3. Data_Input_Sheet'!AC55),F49,'3. Data_Input_Sheet'!AC55) -> 0 | J65: =$J$74*F65 -> 0 | L65: =IF(ISBLANK('3. Data_Input_Sheet'!AC62),L49,'3. Data_Input_Sheet'!AC62) -> 0.04543627323 | P65: =L65*J65 -> 0
B66: 9 | D66: Short-term Debt | F66: =IF(ISBLANK('3. Data_Input_Sheet'!AC56),F50,'3. Data_Input_Sheet'!AC56) -> 0 | J66: =$J$74*F66 -> 0 | L66: =IF(ISBLANK('3. Data_Input_Sheet'!AC63),L50,'3. Data_Input_Sheet'!AC63) -> 0.0391 | P66: =L66*J66 -> 0
B67: 10 | D67: Total Debt | F67: =SUM(F65:F66) -> 0 | J67: =SUM(J65:J66) -> 0 | L67: =IF(F67=0,0,SUMPRODUCT(F65:F66,L65:L66)/F67) -> 0 | P67: =SUM(P65:P66) -> 0
D69: Equity
B70: 11 | D70: Common Equity | F70: =IF(ISBLANK('3. Data_Input_Sheet'!AC57),F54,'3. Data_Input_Sheet'!AC57) -> 0 | J70: =$J$74*F70 -> 0 | L70: =IF(ISBLANK('3. Data_Input_Sheet'!AC64),L54,'3. Data_Input_Sheet'!AC64) -> 0.09 | P70: =L70*J70 -> 0
B71: 12 | D71: Preferred Shares | F71: =IF(ISBLANK('3. Data_Input_Sheet'!AC58),F55,'3. Data_Input_Sheet'!AC58) -> 0 | J71: =$J$58*F71 -> 0 | L71: =IF(ISBLANK('3. Data_Input_Sheet'!AC65),L55,'3. Data_Input_Sheet'!AC65) -> 0 | P71: =L71*J71 -> 0
B72: 13 | D72: Total Equity | F72: =SUM(F70:F71) -> 0 | J72: =SUM(J70:J71) -> 0 | L72: =IF(F72=0,0,SUMPRODUCT(F70:F71,L70:L71)/F72) -> 0 | P72: =SUM(P70:P71) -> 0
B74: 14 | D74: Total | F74: =F67+F72 -> 0 | J74: ='4. Rate_Base'!AC19 -> 0 | L74: =(L67*F67)+(L72*F72) -> 0 | P74: =P67+P72 -> 0
B77: Notes

Sheet 8. Rev_Def_Suff
P1: =CONCATENATE('2. Table of Contents'!$F$6," ",'2. Table of Contents'!$G$6) -> 
B10: Revenue Deficiency/Sufficiency
F13: Initial Application | J13: =IF(ISBLANK('3. Data_Input_Sheet'!M12),"",'3. Data_Input_Sheet'!M12) -> Interrogatory Responses | N13: =IF(ISBLANK('3. Data_Input_Sheet'!U12),"",'3. Data_Input_Sheet'!U12) -> Settlement Agreement | R13: ='3. Data_Input_Sheet'!AC12 -> Per Board Decision
B15: Line No. | D15: Particulars | F15: At Current Approved Rates | H15: At Proposed Rates | J15: At Current Approved Rates | L15: At Proposed Rates | N15: At Current Approved Rates | P15: At Proposed Rates | R15: At Current Approved Rates | T15: At Proposed Rates
B19: 1 | D19: Revenue Deficiency from Below | H19: =F52 -> 2449403.35 | L19: =J52 -> -7988092 | P19: =N52 -> 0 | T19: =R52 -> 0
B20: 2 | D20: Distribution Revenue | F20: ='3. Data_Input_Sheet'!E25 -> 7988092 | H20: ='3. Data_Input_Sheet'!E26-H19 -> 7988092 | J20: =IF(ISBLANK('3. Data_Input_Sheet'!M25),'3. Data_Input_Sheet'!E25,'3. Data_Input_Sheet'!M25) -> 7988092 | L20: =IF(ISBLANK('3. Data_Input_Sheet'!M26),'3. Data_Input_Sheet'!E26-L19,'3. Data_Input_Sheet'!M26-L19) -> 18425587.35 | N20: =IF(ISBLANK('3. Data_Input_Sheet'!U25),'3. Data_Input_Sheet'!M25,'3. Data_Input_Sheet'!U25) -> 0 | P20: =IF(ISBLANK('3. Data_Input_Sheet'!U26),'3. Data_Input_Sheet'!M26-P19,'3. Data_Input_Sheet'!U26-P19) -> 0 | R20: =IF(ISBLANK('3. Data_Input_Sheet'!AC25),'3. Data_Input_Sheet'!U25,'3. Data_Input_Sheet'!AC25) -> 0 | T20: =IF(ISBLANK('3. Data_Input_Sheet'!AC26),'3. Data_Input_Sheet'!U26-T19,'3. Data_Input_Sheet'!AC26-T19) -> 0
B21: 3 | D21: Other Operating Revenue Offsets - net | F21: ='5. Utility Income'!F48 -> 80000 | H21: ='5. Utility Income'!F48 -> 80000 | J21: ='5. Utility Income'!N48 -> 0 | L21: =J21 -> 0 | N21: ='5. Utility Income'!V48 -> 0 | P21: ='5. Utility Income'!V48 -> 0 | R21: ='5. Utility Income'!AD48 -> 0 | T21: ='5. Utility Income'!AD48 -> 0
B22: 4 | D22: Total Revenue | F22: =SUM(F20:F21) -> 8068092 | H22: =SUM(H19:H21) -> 10517495.35 | J22: =SUM(J20:J21) -> 7988092 | L22: =SUM(L19:L21) -> 10437495.35 | N22: =SUM(N20:N21) -> 0 | P22: =SUM(P19:P21) -> 0 | R22: =SUM(R20:R21) -> 0 | T22: =SUM(T19:T21) -> 0
B24: 5 | D24: Operating Expenses | F24: ='5. Utility Income'!F27 -> 8215538.99 | H24: ='5. Utility Income'!F27 -> 8215538.99 | J24: ='5. Utility Income'!N27 -> 0 | L24: ='5. Utility Income'!N27 -> 0 | N24: ='5. Utility Income'!V27 -> 0 | P24: ='5. Utility Income'!V27 -> 0 | R24: ='5. Utility Income'!AD27 -> 0 | T24: ='5. Utility Income'!AD27 -> 0
B25: 6 | D25: Deemed Interest Expense | F25: ='5. Utility Income'!F30 -> 986726.2737 | H25: ='5. Utility Income'!F30 -> 986726.2737 | J25: ='5. Utility Income'!N30 -> 0 | L25: ='5. Utility Income'!N30 -> 0 | N25: ='5. Utility Income'!V30 -> 0 | P25: ='5. Utility Income'!V30 -> 0 | R25: ='5. Utility Income'!AD30 -> 0 | T25: ='5. Utility Income'!AD30 -> 0
B26: 8 | D26: Total Cost and Expenses | F26: =SUM(F24:F25) -> 9202265.264 | H26: =SUM(H24:H25) -> 9202265.264 | J26: =SUM(J24:J25) -> 0 | L26: =SUM(L24:L25) -> 0 | N26: =SUM(N24:N25) -> 0 | P26: =SUM(P24:P25) -> 0 | R26: =SUM(R24:R25) -> 0 | T26: =SUM(T24:T25) -> 0
B28: 9 | D28: Utility Income Before Income Taxes | F28: =F22-F26 -> -1134173.264 | H28: =H22-H26 -> 1315230.086 | J28: =J22-J26 -> 7988092 | L28: =L22-L26 -> 10437495.35 | N28: =N22-N26 -> 0 | P28: =P22-P26 -> 0 | R28: =R22-R26 -> 0 | T28: =T22-T26 -> 0
B30: 10 | D30: Tax Adjustments to Accounting Income per 2013 PILs model | F30: ='3. Data_Input_Sheet'!E44 -> 0 | H30: ='3. Data_Input_Sheet'!E44 -> 0 | J30: =IF(ISBLANK('3. Data_Input_Sheet'!M44),'3. Data_Input_Sheet'!E44,'3. Data_Input_Sheet'!M44) -> 0 | L30: =IF(ISBLANK('3. Data_Input_Sheet'!M44),'3. Data_Input_Sheet'!E44,'3. Data_Input_Sheet'!M44) -> 0 | N30: =IF(ISBLANK('3. Data_Input_Sheet'!U44),'3. Data_Input_Sheet'!M44,'3. Data_Input_Sheet'!U44) -> 0 | P30: =IF(ISBLANK('3. Data_Input_Sheet'!U44),'3. Data_Input_Sheet'!M44,'3. Data_Input_Sheet'!U44) -> 0 | R30: =IF(ISBLANK('3. Data_Input_Sheet'!Y44),'3. Data_Input_Sheet'!Q44,'3. Data_Input_Sheet'!AC44) -> 0 | T30: =IF(ISBLANK('3. Data_Input_Sheet'!AC44),'3. Data_Input_Sheet'!U44,'3. Data_Input_Sheet'!AC44) -> 0
B31: 11 | D31: Taxable Income | F31: =SUM(F28:F30) -> -1134173.264 | H31: =SUM(H28:H30) -> 1315230.086 | J31: =SUM(J28+J30) -> 7988092 | L31: =L28+L30 -> 10437495.35 | N31: =SUM(N28+N30) -> 0 | P31: =P28+P30 -> 0 | R31: =SUM(R28+R30) -> 0 | T31: =T28+T30 -> 0
B33: 12 | D33: Income Tax Rate | F33: ='6. Taxes_PILs'!G41 -> 0 | H33: ='6. Taxes_PILs'!G41 -> 0 | J33: ='6. Taxes_PILs'!K41 -> 0 | L33: ='6. Taxes_PILs'!K41 -> 0 | N33: ='6. Taxes_PILs'!O41 -> 0 | P33: ='6. Taxes_PILs'!O41 -> 0 | R33: ='6. Taxes_PILs'!S41 -> 0 | T33: ='6. Taxes_PILs'!S41 -> 0
B34: 13 | D34: Income Tax on Taxable Income | F34: =MAX(F31*F33,0) -> 0 | H34: =MAX(H31*H33,0) -> 0 | J34: =MAX(J31*J33,0) -> 0 | L34: =MAX(L31*L33,0) -> 0 | N34: =MAX(N31*N33,0) -> 0 | P34: =MAX(P31*P33,0) -> 0 | R34: =MAX(R31*R33,0) -> 0 | T34: =MAX(T31*T33,0) -> 0
B35: 14 | D35: Income Tax Credits | F35: ='3. Data_Input_Sheet'!E51 -> 0 | H35: ='3. Data_Input_Sheet'!E51 -> 0 | J35: =IF(ISBLANK('3. Data_Input_Sheet'!M51),'3. Data_Input_Sheet'!E51,'3. Data_Input_Sheet'!M51) -> 0 | L35: =IF(ISBLANK('3. Data_Input_Sheet'!M51),'3. Data_Input_Sheet'!E51,'3. Data_Input_Sheet'!M51) -> 0 | N35: =IF(ISBLANK('3. Data_Input_Sheet'!U51),'3. Data_Input_Sheet'!M51,'3. Data_Input_Sheet'!U51) -> 0 | P35: =IF(ISBLANK('3. Data_Input_Sheet'!U51),'3. Data_Input_Sheet'!M51,'3. Data_Input_Sheet'!U51) -> 0 | R35: =IF(ISBLANK('3. Data_Input_Sheet'!Y51),'3. Data_Input_Sheet'!Q51,'3. Data_Input_Sheet'!Y51) ->  | T35: =IF(ISBLANK('3. Data_Input_Sheet'!Y51),'3. Data_Input_Sheet'!Q51,'3. Data_Input_Sheet'!Y51) -> 
B36: 15 | D36: Utility Net Income | F36: =F28-SUM(F34:F35) -> -1134173.264 | H36: ='5. Utility Income'!F37 -> 1315230.086 | J36: =J28-SUM(J34:J35) -> 7988092 | L36: ='5. Utility Income'!N37 -> 0 | N36: =N28-SUM(N34:N35) -> 0 | P36: ='5. Utility Income'!V37 -> 0 | R36: =R28-SUM(R34:R35) -> 0 | T36: ='5. Utility Income'!AD37 -> 0
B38: 16 | D38: Utility Rate Base | F38: ='4. Rate_Base'!G19 -> 36534169.07 | H38: ='4. Rate_Base'!G19 -> 36534169.07 | J38: ='4. Rate_Base'!O19 -> 0 | L38: ='4. Rate_Base'!O19 -> 0 | N38: ='4. Rate_Base'!W19 -> 0 | P38: ='4. Rate_Base'!W19 -> 0 | R38: ='4. Rate_Base'!AC19 -> 0 | T38: ='4. Rate_Base'!AC19 -> 0
B40: 17 | D40: Deemed Equity Portion of Rate Base | F40: ='7. Cost_of_Capital'!J24 -> 14613667.63 | H40: =F40 -> 14613667.63 | J40: ='7. Cost_of_Capital'!J40 -> 0 | L40: =J40 -> 0 | N40: ='7. Cost_of_Capital'!J56 -> 0 | P40: =N40 -> 0 | R40: ='7. Cost_of_Capital'!J72 -> 0 | T40: =R40 -> 0
B42: 18 | D42: Income/(Equity Portion of Rate Base) | F42: =IF(F40=0,0,F36/F40) -> -0.0776104461 | H42: =IF(H40=0,0,H36/H40) -> 0.09 | J42: =IF(J40=0,0,J36/J40) -> 0 | L42: =IF(L40=0,0,L36/L40) -> 0 | N42: =IF(N40=0,0,N36/N40) -> 0 | P42: =IF(P40=0,0,P36/P40) -> 0 | R42: =IF(R40=0,0,R36/R40) -> 0 | T42: =IF(T40=0,0,T36/T40) -> 0
B43: 19 | D43: Target Return - Equity on Rate Base | F43: ='7. Cost_of_Capital'!L24 -> 0.09 | H43: ='7. Cost_of_Capital'!L24 -> 0.09 | J43: ='7. Cost_of_Capital'!L40 -> 0 | L43: ='7. Cost_of_Capital'!L40 -> 0 | N43: ='7. Cost_of_Capital'!L56 -> 0 | P43: ='7. Cost_of_Capital'!L56 -> 0 | R43: ='7. Cost_of_Capital'!L72 -> 0 | T43: ='7. Cost_of_Capital'!L72 -> 0
B44: 20 | D44: Deficiency/Sufficiency in Return on Equity | F44: =F42-F43 -> -0.1676104461 | H44: =H42-H43 -> 0 | J44: =J42-J43 -> 0 | L44: =L42-L43 -> 0 | N44: =N42-N43 -> 0 | P44: =P42-P43 -> 0 | R44: =R42-R43 -> 0 | T44: =T42-T43 -> 0
B46: 21 | D46: Indicated Rate of Return | F46: =IF(F38=0,0,(F36+F25)/F38) -> -0.004035865429 | H46: =IF(H38=0,0,(H36+H25)/H38) -> 0.06300831301 | J46: =IF(J38=0,0,(J36+J25)/J38) -> 0 | L46: =IF(L40=0,0,(L36+L25)/L38) -> 0 | N46: =IF(N38=0,0,(N36+N25)/N38) -> 0 | P46: =IF(P40=0,0,(P36+P25)/P38) -> 0 | R46: =IF(R38=0,0,(R36+R25)/R38) -> 0 | T46: =IF(T40=0,0,(T36+T25)/T38) -> 0
B47: 22 | D47: Requested Rate of Return on Rate Base | F47: ='7. Cost_of_Capital'!L26 -> 0.06300831301 | H47: ='7. Cost_of_Capital'!L26 -> 0.06300831301 | J47: ='7. Cost_of_Capital'!L42 -> 0 | L47: ='7. Cost_of_Capital'!L42 -> 0 | N47: ='7. Cost_of_Capital'!L58 -> 0 | P47: ='7. Cost_of_Capital'!L58 -> 0 | R47: ='7. Cost_of_Capital'!L74 -> 0 | T47: ='7. Cost_of_Capital'!L74 -> 0
B48: 23 | D48: Deficiency/Sufficiency in Rate of Return | F48: =F46-F47 -> -0.06704417844 | H48: =H46-H47 -> 0 | J48: =J46-J47 -> 0 | L48: =L46-L47 -> 0 | N48: =N46-N47 -> 0 | P48: =P46-P47 -> 0 | R48: =R46-R47 -> 0 | T48: =T46-T47 -> 0
B50: 24 | D50: Target Return on Equity | F50: =H50 -> 1315230.086 | H50: ='7. Cost_of_Capital'!P24 -> 1315230.086 | J50: =L50 -> 0 | L50: ='7. Cost_of_Capital'!P40 -> 0 | N50: =P50 -> 0 | P50: ='7. Cost_of_Capital'!P56 -> 0 | R50: =T50 -> 0 | T50: ='7. Cost_of_Capital'!P72 -> 0
B51: 25 | D51: Revenue Deficiency/(Sufficiency) | F51: =F50-F36 -> 2449403.35 | H51: =H38*H48 -> 0 | J51: =J50-J36 -> -7988092 | L51: =L38*L48 -> 0 | N51: =N50-N36 -> 0 | P51: =P38*P48 -> 0 | R51: =R50-R36 -> 0 | T51: =T38*T48 -> 0
B52: 26 | D52: Gross Revenue Deficiency/(Sufficiency) | F52: =F51/(1-F33) -> 2449403.35 | G52: (1) | J52: =J51/(1-J33) -> -7988092 | K52: (1) | N52: =N51/(1-N33) -> 0 | O52: (1) | R52: =R51/(1-R33) -> 0 | S52: (1)
B55: Notes:
B56: (1) | D56: Revenue Deficiency/Sufficiency divided by (1 - Tax Rate)

Sheet 9. Rev_Reqt
B11: Revenue Requirement
B13: Line No. | D13: Particulars | F13: Application | J13: =IF(ISBLANK('3. Data_Input_Sheet'!M12),"",'3. Data_Input_Sheet'!M12) -> Interrogatory Responses | N13: =IF(ISBLANK('3. Data_Input_Sheet'!U12),"",'3. Data_Input_Sheet'!U12) -> Settlement Agreement | R13: ='3. Data_Input_Sheet'!AC12 -> Per Board Decision
B15: 1 | D15: OM&A Expenses | F15: ='5. Utility Income'!F22 -> 6201581.84 | J15: ='5. Utility Income'!N22 -> 0 | N15: ='5. Utility Income'!V22 -> 0 | R15: ='5. Utility Income'!AD22 -> 0
B16: 2 | D16: Amortization/Depreciation | F16: ='5. Utility Income'!F23 -> 2013957.15 | J16: ='5. Utility Income'!N23 -> 0 | N16: ='5. Utility Income'!V23 -> 0 | R16: ='5. Utility Income'!AD23 -> 0
B17: 3 | D17: Property Taxes | F17: ='5. Utility Income'!F24 -> 0 | J17: ='5. Utility Income'!N24 -> 0 | N17: ='5. Utility Income'!V24 -> 0 | R17: ='5. Utility Income'!AD24 -> 0
B18: 4 | D18: Capital Taxes | F18: ='6. Taxes_PILs'!G25 -> 0 | J18: ='6. Taxes_PILs'!K25 -> 0 | N18: ='6. Taxes_PILs'!O25 -> 0 | R18: ='6. Taxes_PILs'!S25 -> 0
B19: 5 | D19: Income Taxes (Grossed up) | F19: ='6. Taxes_PILs'!G33 -> 0 | J19: ='6. Taxes_PILs'!K33 -> 0 | N19: ='6. Taxes_PILs'!O33 -> 0 | R19: ='6. Taxes_PILs'!S33 -> 0
B20: 6 | D20: Other Expenses | F20: ='5. Utility Income'!F26 -> 0 | J20: ='5. Utility Income'!N26 -> 0 | N20: ='5. Utility Income'!V26 -> 0 | R20: ='5. Utility Income'!AD26 -> 0
B21: 7 | D21: Return
D22: Deemed Interest Expense | F22: ='8. Rev_Def_Suff'!F25 -> 986726.2737 | J22: ='8. Rev_Def_Suff'!L25 -> 0 | N22: ='8. Rev_Def_Suff'!P25 -> 0 | R22: ='8. Rev_Def_Suff'!T25 -> 0
D23: Return on Deemed Equity | F23: ='8. Rev_Def_Suff'!F50 -> 1315230.086 | J23: ='8. Rev_Def_Suff'!L50 -> 0 | N23: ='8. Rev_Def_Suff'!P50 -> 0 | R23: ='8. Rev_Def_Suff'!T50 -> 0
B25: 8 | D25: Service Revenue Requirement (before Revenues) | F25: =SUM(F15:F23) -> 10517495.35 | J25: =SUM(J15:J23) -> 0 | N25: =SUM(N15:N23) -> 0 | R25: =SUM(R15:R23) -> 0
B27: 9 | D27: Revenue Offsets | F27: ='3. Data_Input_Sheet'!E33 -> 80000 | J27: ='3. Data_Input_Sheet'!M33 -> 0 | N27: ='3. Data_Input_Sheet'!U33 -> 0 | R27: ='3. Data_Input_Sheet'!AC33 -> 0
B28: 10 | D28: Base Revenue Requirement | F28: =F25-F27 -> 10437495.35 | J28: =J25-J27 -> 0 | N28: =N25-N27 -> 0 | R28: =R25-R27 -> 0
D29: (excluding Tranformer Owership Allowance credit adjustment)
B31: 11 | D31: Distribution revenue | F31: ='5. Utility Income'!F16 -> 10437495.35 | J31: ='5. Utility Income'!N16 -> 0 | N31: ='5. Utility Income'!V16 -> 0 | R31: ='5. Utility Income'!AD16 -> 0
B32: 12 | D32: Other revenue | F32: ='5. Utility Income'!F17 -> 80000 | J32: ='5. Utility Income'!N17 -> 0 | N32: ='5. Utility Income'!V17 -> 0 | R32: ='5. Utility Income'!AD17 -> 0
B34: 13 | D34: Total revenue | F34: =SUM(F31:F32) -> 10517495.35 | J34: =SUM(J31:J32) -> 0 | N34: =SUM(N31:N32) -> 0 | R34: =SUM(R31:R32) -> 0
B36: 14 | D36: Difference (Total Revenue Less Distribution Revenue Requirement before Revenues) | F36: =F34-F25 -> 0 | H36: (1) | J36: =J34-J25 -> 0 | L36: (1) | N36: =N34-N25 -> 0 | P36: (1) | R36: =R34-R25 -> 0 | T36: (1)
D39: Summary Table of Revenue Requirement and Revenue Deficiency/Sufficiency
F41: =F13 -> Application | J41: =J13 -> Interrogatory Responses | L41: Δ% (2) | N41: =N13 -> Settlement Agreement | P41: Δ% (2) | R41: =R13 -> Per Board Decision | T41: Δ% (2)
D42: Service Revenue Requirement | F42: =F25 -> 10517495.35 | J42: =J25 -> 0 | L42: =IF($F42=0," ",(J42-$F42)/$F42) -> -1 | N42: =N25 -> 0 | P42: =IF($F42=0," ",(N42-$F42)/$F42) -> -1 | R42: =R25 -> 0 | T42: =IF($F42=0," ",(R42-$F42)/$F42) -> -1
D43: Grossed-Up Revenue Deficiency/(Sufficiency) | F43: ='8. Rev_Def_Suff'!F52 -> 2449403.35 | J43: ='8. Rev_Def_Suff'!J52 -> -7988092 | L43: =IF($F43=0," ",(J43-$F43)/$F43) -> -4.261239926 | N43: ='8. Rev_Def_Suff'!N52 -> 0 | P43: =IF($F43=0," ",(N43-$F43)/$F43) -> -1 | R43: ='8. Rev_Def_Suff'!R52 -> 0 | T43: =IF($F43=0," ",(R43-$F43)/$F43) -> -1
D45: Base Revenue Requirement (to be recovered from Distribution Rates) | F45: =F28 -> 10437495.35 | J45: =J28 -> 0 | L45: =IF($F45=0," ",(J45-$F45)/$F45) -> -1 | N45: =N28 -> 0 | P45: =IF($F45=0," ",(N45-$F45)/$F45) -> -1 | R45: =R28 -> 0 | T45: =IF($F45=0," ",(R45-$F45)/$F45) -> -1
D46: Revenue Deficiency/(Sufficiency) Associated with Base Revenue Requirement | F46: ='3. Data_Input_Sheet'!E26-'3. Data_Input_Sheet'!E25 -> 2449403.35 | J46: ='3. Data_Input_Sheet'!M26-'3. Data_Input_Sheet'!M25 -> 0 | L46: =IF($F46=0," ",(J46-$F46)/$F46) -> -1 | N46: ='3. Data_Input_Sheet'!U26-'3. Data_Input_Sheet'!U25 -> 0 | P46: =IF($F46=0," ",(N46-$F46)/$F46) -> -1 | R46: ='3. Data_Input_Sheet'!AC26-'3. Data_Input_Sheet'!AC25 -> 0 | T46: =IF($F46=0," ",(R46-$F46)/$F46) -> -1
B49: Notes
B50: (1) | D50: Line 11 - Line 8
B51: (2) | D51: Percentage Change Relative to Initial Application

Sheet Hidden Data_Rev Reqt (hidden)
A1: Utility Name | B1: EB Number | C1: Test Year | D1: Bridge Year | E1: Last Rebasing Year | F1: Data Elements | G1: Intital Application | H1: Per Board Decision
A2: ='1. Info'!$G$16 -> Five Nations Energy Inc. | B2: ='1. Info'!$G$20 -> EB-2025-0129 | C2: ='1. Info'!$G$28 -> 2026 | D2: ='1. Info'!$G$30 -> 2025 | E2: ='1. Info'!$G$32 -> 2018 | F2: Service Revenue Requirement (before Revenues) | G2: ='9. Rev_Reqt'!F25 -> 10517495.35 | H2: ='9. Rev_Reqt'!N25 -> 0
A3: ='1. Info'!$G$16 -> Five Nations Energy Inc. | B3: ='1. Info'!$G$20 -> EB-2025-0129 | C3: ='1. Info'!$G$28 -> 2026 | D3: ='1. Info'!$G$30 -> 2025 | E3: ='1. Info'!$G$32 -> 2018 | F3: Base Revenue Requirement | G3: ='9. Rev_Reqt'!F28 -> 10437495.35 | H3: ='9. Rev_Reqt'!N28 -> 0
A4: ='1. Info'!$G$16 -> Five Nations Energy Inc. | B4: ='1. Info'!$G$20 -> EB-2025-0129 | C4: ='1. Info'!$G$28 -> 2026 | D4: ='1. Info'!$G$30 -> 2025 | E4: ='1. Info'!$G$32 -> 2018 | F4: Revenue Deficiency/(Sufficiency) Associated with Base Revenue Requirement | G4: ='9. Rev_Reqt'!F46 -> 2449403.35 | H4: ='9. Rev_Reqt'!N46 -> 0

Sheet 14. Tracking_Sheet
B14: Tracking Form
B15: The first row shown, labelled "Original Application", summarizes key statistics based on the data inputs into the RRWF. After the original application filing, the applicant provides key changes in capital and operating expenses, load forecasts, cost of capital, etc., as revised through the processing of the application. This could be due to revisions or responses to interrogatories. The last row shown is the most current estimate of the cost of service data reflecting the original application and any updates provided by the applicant distributor (for updated evidence, responses to interrogatories, undertakings, etc.) Please ensure a Reference (Column B) and/or Item Description (Column C) is entered. (1) Short reference to evidence material (interrogatory response, undertaking, exhibit number, Board Decision, Code, Guideline, Report of the Board, etc.) (2) Short description of change, issue, etc. 60 Tracking Rows have been provided below. If you require more, please contact Industry Relations @ IndustryRelations@ontarioenergyboard.ca.
B16: Summary of Proposed Changes
D18: Cost of Capital | F18: Rate Base and Capital Expenditures | I18: Operating Expenses | L18: Revenue Requirement
B19: Reference (1) | C19: Item / Description (2) | D19: Regulated Return on Capital | E19: Regulated Rate of Return | F19: Rate Base | G19: Working Capital | H19: Working Capital Allowance ($) | I19: Amortization / Depreciation | J19: Taxes/PILs | K19: OM&A | L19: Service Revenue Requirement | M19: Other Revenues | N19: Base Revenue Requirement | O19: Grossed up Revenue Deficiency / Sufficiency
C21: Original Application | D21: ='7. Cost_of_Capital'!P26 -> 2301956.36 | E21: ='7. Cost_of_Capital'!L26 -> 0.06300831301 | F21: ='4. Rate_Base'!G19 -> 36534169.07 | G21: ='4. Rate_Base'!G26 -> 6201581.84 | H21: ='4. Rate_Base'!G30 -> 220156.1553 | I21: ='9. Rev_Reqt'!F16 -> 2013957.15 | J21: ='9. Rev_Reqt'!F19 -> 0 | K21: ='9. Rev_Reqt'!F15 -> 6201581.84 | L21: ='9. Rev_Reqt'!F25 -> 10517495.35 | M21: ='9. Rev_Reqt'!F32 -> 80000 | N21: ='9. Rev_Reqt'!F28 -> 10437495.35 | O21: ='8. Rev_Def_Suff'!F52 -> 2449403.35
A23: 1 | Q23: =IF(AND(ISBLANK(B23), ISBLANK(C23)), "X", "") -> X
C24: Change | D24: =IF(D23="","",D23-D21) ->  | E24: =IF(E23="","",E23-E21) -> 
A26: 2 | Q26: =IF(AND(ISBLANK(B26), ISBLANK(C26)), "X", "") -> X
C27: Change | D27: =IF(D26="","",D26-D23) -> 
A29: 3 | Q29: =IF(AND(ISBLANK(B29), ISBLANK(C29)), "X", "") -> X
C30: Change | D30: =IF(D29="","",D29-D26) ->  | E30: =IF(E29="","",E29-E26) -> 
A32: 4 | Q32: =IF(AND(ISBLANK(B32), ISBLANK(C32)), "X", "") -> X
C33: Change | D33: =IF(D32="","",D32-D29) ->  | E33: =IF(E32="","",E32-E29) -> 
A35: 5 | Q35: =IF(AND(ISBLANK(B35), ISBLANK(C35)), "X", "") -> X
C36: Change | D36: =IF(D35="","",D35-D32) ->  | E36: =IF(E35="","",E35-E32) -> 
A38: 6 | Q38: =IF(AND(ISBLANK(B38), ISBLANK(C38)), "X", "") -> X
C39: Change | D39: =IF(D38="","",D38-D35) ->  | E39: =IF(E38="","",E38-E35) -> 
A41: 7 | Q41: =IF(AND(ISBLANK(B41), ISBLANK(C41)), "X", "") -> X
C42: Change | D42: =IF(D41="","",D41-D38) ->  | E42: =IF(E41="","",E41-E38) -> 
A44: 8 | Q44: =IF(AND(ISBLANK(B44), ISBLANK(C44)), "X", "") -> X
C45: Change | D45: =IF(D44="","",D44-D41) ->  | E45: =IF(E44="","",E44-E41) -> 
A47: 9 | Q47: =IF(AND(ISBLANK(B47), ISBLANK(C47)), "X", "") -> X
C48: Change | D48: =IF(D47="","",D47-D44) ->  | E48: =IF(E47="","",E47-E44) -> 
A50: 10 | Q50: =IF(AND(ISBLANK(B50), ISBLANK(C50)), "X", "") -> X
C51: Change | D51: =IF(D50="","",D50-D47) ->  | E51: =IF(E50="","",E50-E47) -> 
A53: 11 | Q53: =IF(AND(ISBLANK(B53), ISBLANK(C53)), "X", "") -> X
C54: Change | D54: =IF(D53="","",D53-D50) ->  | E54: =IF(E53="","",E53-E50) -> 
A56: 12 | Q56: =IF(AND(ISBLANK(B56), ISBLANK(C56)), "X", "") -> X
C57: Change | D57: =IF(D56="","",D56-D53) ->  | E57: =IF(E56="","",E56-E53) -> 
A59: 13 | Q59: =IF(AND(ISBLANK(B59), ISBLANK(C59)), "X", "") -> X
C60: Change | D60: =IF(D59="","",D59-D56) ->  | E60: =IF(E59="","",E59-E56) -> 
A62: 14 | Q62: =IF(AND(ISBLANK(B62), ISBLANK(C62)), "X", "") -> X
C63: Change | D63: =IF(D62="","",D62-D59) ->  | E63: =IF(E62="","",E62-E59) -> 
A65: 15 | Q65: =IF(AND(ISBLANK(B65), ISBLANK(C65)), "X", "") -> X
C66: Change | D66: =IF(D65="","",D65-D62) ->  | E66: =IF(E65="","",E65-E62) -> 
A68: 16 | Q68: =IF(AND(ISBLANK(B68), ISBLANK(C68)), "X", "") -> X
C69: Change | D69: =IF(D68="","",D68-D65) ->  | E69: =IF(E68="","",E68-E65) -> 
A71: 17 | Q71: =IF(AND(ISBLANK(B71), ISBLANK(C71)), "X", "") -> X
C72: Change | D72: =IF(D71="","",D71-D68) ->  | E72: =IF(E71="","",E71-E68) -> 
A74: 18 | Q74: =IF(AND(ISBLANK(B74), ISBLANK(C74)), "X", "") -> X
C75: Change | D75: =IF(D74="","",D74-D71) ->  | E75: =IF(E74="","",E74-E71) -> 
R76: Page Break 1
A77: 19 | Q77: =IF(AND(ISBLANK(B77), ISBLANK(C77)), "X", "") -> X
C78: Change | D78: =IF(D77="","",D77-D74) ->  | E78: =IF(E77="","",E77-E74) -> 
A80: 20 | Q80: =IF(AND(ISBLANK(B80), ISBLANK(C80)), "X", "") -> X
C81: Change | D81: =IF(D80="","",D80-D77) ->  | E81: =IF(E80="","",E80-E77) -> 
A83: 21 | Q83: =IF(AND(ISBLANK(B83), ISBLANK(C83)), "X", "") -> X
C84: Change | D84: =IF(D83="","",D83-D80) ->  | E84: =IF(E83="","",E83-E80) -> 
A86: 22 | Q86: =IF(AND(ISBLANK(B86), ISBLANK(C86)), "X", "") -> X
C87: Change | D87: =IF(D86="","",D86-D83) ->  | E87: =IF(E86="","",E86-E83) -> 
A89: 23 | Q89: =IF(AND(ISBLANK(B89), ISBLANK(C89)), "X", "") -> X
C90: Change | D90: =IF(D89="","",D89-D86) ->  | E90: =IF(E89="","",E89-E86) -> 
A92: 24 | Q92: =IF(AND(ISBLANK(B92), ISBLANK(C92)), "X", "") -> X
C93: Change | D93: =IF(D92="","",D92-D89) ->  | E93: =IF(E92="","",E92-E89) -> 
A95: 25 | Q95: =IF(AND(ISBLANK(B95), ISBLANK(C95)), "X", "") -> X
C96: Change | D96: =IF(D95="","",D95-D92) ->  | E96: =IF(E95="","",E95-E92) -> 
A98: 26 | Q98: =IF(AND(ISBLANK(B98), ISBLANK(C98)), "X", "") -> X
C99: Change | D99: =IF(D98="","",D98-D95) ->  | E99: =IF(E98="","",E98-E95) -> 
A101: 27 | Q101: =IF(AND(ISBLANK(B101), ISBLANK(C101)), "X", "") -> X
C102: Change | D102: =IF(D101="","",D101-D98) ->  | E102: =IF(E101="","",E101-E98) -> 
A104: 28 | Q104: =IF(AND(ISBLANK(B104), ISBLANK(C104)), "X", "") -> X
C105: Change | D105: =IF(D104="","",D104-D101) ->  | E105: =IF(E104="","",E104-E101) -> 
A107: 29 | Q107: =IF(AND(ISBLANK(B107), ISBLANK(C107)), "X", "") -> X
C108: Change | D108: =IF(D107="","",D107-D104) ->  | E108: =IF(E107="","",E107-E104) -> 
A110: 30 | Q110: =IF(AND(ISBLANK(B110), ISBLANK(C110)), "X", "") -> X
C111: Change | D111: =IF(D110="","",D110-D107) ->  | E111: =IF(E110="","",E110-E107) -> 
A113: 31 | Q113: =IF(AND(ISBLANK(B113), ISBLANK(C113)), "X", "") -> X
C114: Change | D114: =IF(D113="","",D113-D110) ->  | E114: =IF(E113="","",E113-E110) -> 
A116: 32 | Q116: =IF(AND(ISBLANK(B116), ISBLANK(C116)), "X", "") -> X
C117: Change | D117: =IF(D116="","",D116-D113) ->  | E117: =IF(E116="","",E116-E113) -> 
A119: 33 | Q119: =IF(AND(ISBLANK(B119), ISBLANK(C119)), "X", "") -> X
C120: Change | D120: =IF(D119="","",D119-D116) ->  | E120: =IF(E119="","",E119-E116) -> 
A122: 34 | Q122: =IF(AND(ISBLANK(B122), ISBLANK(C122)), "X", "") -> X
C123: Change | D123: =IF(D122="","",D122-D119) ->  | E123: =IF(E122="","",E122-E119) -> 
A125: 35 | Q125: =IF(AND(ISBLANK(B125), ISBLANK(C125)), "X", "") -> X
C126: Change | D126: =IF(D125="","",D125-D122) ->  | E126: =IF(E125="","",E125-E122) -> 
A128: 36 | Q128: =IF(AND(ISBLANK(B128), ISBLANK(C128)), "X", "") -> X
C129: Change | D129: =IF(D128="","",D128-D125) ->  | E129: =IF(E128="","",E128-E125) -> 
R130: Page Break 2
A131: 37 | Q131: =IF(AND(ISBLANK(B131), ISBLANK(C131)), "X", "") -> X
C132: Change | D132: =IF(D131="","",D131-D128) ->  | E132: =IF(E131="","",E131-E128) -> 
A134: 38 | Q134: =IF(AND(ISBLANK(B134), ISBLANK(C134)), "X", "") -> X
C135: Change | D135: =IF(D134="","",D134-D131) ->  | E135: =IF(E134="","",E134-E131) -> 
A137: 39 | Q137: =IF(AND(ISBLANK(B137), ISBLANK(C137)), "X", "") -> X
C138: Change | D138: =IF(D137="","",D137-D134) ->  | E138: =IF(E137="","",E137-E134) -> 
A140: 40 | Q140: =IF(AND(ISBLANK(B140), ISBLANK(C140)), "X", "") -> X
C141: Change | D141: =IF(D140="","",D140-D137) ->  | E141: =IF(E140="","",E140-E137) -> 
A143: 41 | Q143: =IF(AND(ISBLANK(B143), ISBLANK(C143)), "X", "") -> X
C144: Change | D144: =IF(D143="","",D143-D140) ->  | E144: =IF(E143="","",E143-E140) -> 
A146: 42 | Q146: =IF(AND(ISBLANK(B146), ISBLANK(C146)), "X", "") -> X
C147: Change | D147: =IF(D146="","",D146-D143) ->  | E147: =IF(E146="","",E146-E143) -> 
A149: 43 | Q149: =IF(AND(ISBLANK(B149), ISBLANK(C149)), "X", "") -> X
C150: Change | D150: =IF(D149="","",D149-D146) ->  | E150: =IF(E149="","",E149-E146) -> 
A152: 44 | Q152: =IF(AND(ISBLANK(B152), ISBLANK(C152)), "X", "") -> X
C153: Change | D153: =IF(D152="","",D152-D149) ->  | E153: =IF(E152="","",E152-E149) -> 
A155: 45 | Q155: =IF(AND(ISBLANK(B155), ISBLANK(C155)), "X", "") -> X
C156: Change | D156: =IF(D155="","",D155-D152) ->  | E156: =IF(E155="","",E155-E152) -> 
A158: 46 | Q158: =IF(AND(ISBLANK(B158), ISBLANK(C158)), "X", "") -> X
C159: Change | D159: =IF(D158="","",D158-D155) ->  | E159: =IF(E158="","",E158-E155) -> 
A161: 47 | Q161: =IF(AND(ISBLANK(B161), ISBLANK(C161)), "X", "") -> X
C162: Change | D162: =IF(D161="","",D161-D158) ->  | E162: =IF(E161="","",E161-E158) -> 
A164: 48 | Q164: =IF(AND(ISBLANK(B164), ISBLANK(C164)), "X", "") -> X
C165: Change | D165: =IF(D164="","",D164-D161) ->  | E165: =IF(E164="","",E164-E161) -> 
A167: 49 | Q167: =IF(AND(ISBLANK(B167), ISBLANK(C167)), "X", "") -> X
C168: Change | D168: =IF(D167="","",D167-D164) ->  | E168: =IF(E167="","",E167-E164) -> 
A170: 50 | Q170: =IF(AND(ISBLANK(B170), ISBLANK(C170)), "X", "") -> X
C171: Change | D171: =IF(D170="","",D170-D167) ->  | E171: =IF(E170="","",E170-E167) -> 
A173: 51 | Q173: =IF(AND(ISBLANK(B173), ISBLANK(C173)), "X", "") -> X
C174: Change | D174: =IF(D173="","",D173-D170) ->  | E174: =IF(E173="","",E173-E170) -> 
A176: 52 | Q176: =IF(AND(ISBLANK(B176), ISBLANK(C176)), "X", "") -> X
C177: Change | D177: =IF(D176="","",D176-D173) ->  | E177: =IF(E176="","",E176-E173) -> 
A179: 53 | Q179: =IF(AND(ISBLANK(B179), ISBLANK(C179)), "X", "") -> X
C180: Change | D180: =IF(D179="","",D179-D176) ->  | E180: =IF(E179="","",E179-E176) -> 
R181: Page Break 3
A182: 54 | Q182: =IF(AND(ISBLANK(B182), ISBLANK(C182)), "X", "") -> X
C183: Change | D183: =IF(D182="","",D182-D179) ->  | E183: =IF(E182="","",E182-E179) -> 
A185: 55 | Q185: =IF(AND(ISBLANK(B185), ISBLANK(C185)), "X", "") -> X
C186: Change | D186: =IF(D185="","",D185-D182) ->  | E186: =IF(E185="","",E185-E182) -> 
A188: 56 | Q188: =IF(AND(ISBLANK(B188), ISBLANK(C188)), "X", "") -> X
C189: Change | D189: =IF(D188="","",D188-D185) ->  | E189: =IF(E188="","",E188-E185) -> 
A191: 57 | Q191: =IF(AND(ISBLANK(B191), ISBLANK(C191)), "X", "") -> X
C192: Change | D192: =IF(D191="","",D191-D188) ->  | E192: =IF(E191="","",E191-E188) -> 
A194: 58 | Q194: =IF(AND(ISBLANK(B194), ISBLANK(C194)), "X", "") -> X
C195: Change | D195: =IF(D194="","",D194-D191) ->  | E195: =IF(E194="","",E194-E191) -> 
A197: 59 | Q197: =IF(AND(ISBLANK(B197), ISBLANK(C197)), "X", "") -> X
C198: Change | D198: =IF(D197="","",D197-D194) ->  | E198: =IF(E197="","",E197-E194) -> 
A200: 60 | Q200: =IF(AND(ISBLANK(B200), ISBLANK(C200)), "X", "") -> X
C201: Change | D201: =IF(D200="","",D200-D197) ->  | E201: =IF(E200="","",E200-E197) -> 
R203: Page Break 4

Sheet Sheet4 (hidden)
